{"text_format":"1","workbook":"xlsx","n_sheets":1,"sheets":["Sheet1"],"not_rendered":{"charts":0,"images":0,"macros":1,"external_links":0,"defined_names":1,"comments":0,"pivot_tables":0},"unopened":[],"bounds":{"document_bytes":16777216,"sheet_cells":100000,"rows_first":2000,"rows_last":500,"rows_between":2000,"halvings":0,"cell_chars":16384,"cell_head_chars":4096},"cells_cut":0,"cells_raw":0,"read":"whole","date_system":"1900"}

{"sheet":"Sheet1","index":0,"n_rows":1512,"n_cols":27,"rows_kept":1512,"cut":false,"hidden":false,"merged":[[10,13,10,21],[1,17,8,17],[1,21,8,21],[1,22,8,22],[10,23,10,26],[1,0,1,1],[2,0,2,1],[3,0,3,1],[10,2,10,7],[10,8,10,12],[2,2,2,3],[3,2,3,3],[8,2,8,4],[5,0,5,3]]}
["CAF-ICC - Data for 2021 Program Year Support Calculation"]
["Filing Date",null,null,null,null,null,null,null,null,null,null,null,null,null,null,null,null,"Enter an adjustment to eligible recovery to prevent double recovery as a negative number in this column. ",null,null,null,"The otherwise unrecoverable true-up revenue is treated as eligible recovery in the true-up tariff period.  ","Refund to the administrator by August 1 following the date of the annual access tariff filing.  This sum is the true-up revenue that is not offset by eligible recovery (calculated before the true-up) in the true-up period, and is otherwise the amount of overrecovery of eligible recovery in the period being trued up."]
["Filing Entity"]
["Holding Company"]
[]
["All values within a row must be completed."]
[]
[]
[null,null,"The 2011 Frozen baseline value cannot be changed from prior years without FCC waiver."]
[]
[null,null,"2011 Base Period Revenue Requirement",null,null,null,null,null,"2021-2022 Estimated ICC Revenues",null,null,null,null,"Eligible Recovery",null,null,null,null,null,null,null,null,null,"ARC Annual Revenues"]
["Program Year","SAC(s)","2011 Interstate Switched Access Revenue Requirement","2011 Intrastate Terminating Switched Access Revenues","FY 2011 Net Reciprocal Compensation Revenues","ROR  Baseline Adjustment Factor   (.95*.95*.95*.95*.95*.95*.95*.95*.95*.95)","NECA Expenses              (only applicable to NECA)","ROR  Carrier Revenue Requirement \n((C+D+E)*F)+G","Interstate Switched Access Revenues","Interstate Allocated Switched Access Revenues\n(only applicable to NECA)","Transitional Intrastate Access Service Revenues","Net Transitional Reciprocal Compensation Revenues","Total ICC Revenues\nSUM(J+K+L)","TRS Increment ","Regulatory-Fees Increment ","NANPA Increment ","TY 2019-2020 Unrecoverable True-Up Revenue","Adjustment for Double Recovery or Corrections","Total True Up for TY 2019-2020                           Net Impact on Total Eligible Recovery","State USF Fees","Interstate Local Switching Support for Price Cap Affiliates","Total Eligible Recovery After True-Up Including Otherwise Unrecoverable True-Up Revenue\nH-M+N+O+P+Q+R+S-T-U           ","TY 2018-2019 Eligible Recovery Refund","Residential ARC Annual Revenues","Single Line Business ARC Annual Revenues","Multi-Line Business ARC Annual Revenues","Imputed ARC Revenue From CBOL Lines Per 51.917(f)(4), After 51.917(f)(5) Limit"]
[null,null,null,null,null,{"$f":"IF(AND(LEN(A13)>0,LEN(B13)>0),0.95^10,\"\")","v":""},{"$f":"IF(AND(LEN(A13)>0,LEN(B13)>0),0,\"\")","v":""},{"$f":"IF(AND(LEN(A13)>0,LEN(B13)>0),(C13+D13+E13)*F13+G13,\"\")","v":""},null,{"$f":"IF(AND(LEN(A13)>0,LEN(B13)>0),I13,\"\")","v":""},null,null,{"$f":"IF(AND(LEN(A13)>0,LEN(B13)>0),SUM(J13:L13),\"\")","v":""},null,null,null,null,null,null,null,null,{"$f":"IF(AND(LEN(A13)>0,LEN(B13)>0),H13-M13+N13+O13+P13+Q13+R13+S13-T13-U13,\"\")","v":""}]
[null,null,null,null,null,{"$f":"IF(AND(LEN(A14)>0,LEN(B14)>0),0.95^10,\"\")","v":""},"","",null,{"$f":"IF(AND(LEN(A14)>0,LEN(B14)>0),I14,\"\")","v":""},null,null,{"$f":"IF(AND(LEN(A14)>0,LEN(B14)>0),SUM(J14:L14),\"\")","v":""},null,null,null,null,null,null,null,null,{"$f":"IF(AND(LEN(A14)>0,LEN(B14)>0),H14-M14+N14+O14+P14+Q14+R14+S14-T14-U14,\"\")","v":""}]
[null,null,null,null,null,{"$f":"IF(AND(LEN(A15)>0,LEN(B15)>0),0.95^10,\"\")","v":""},"","",null,"",null,null,"",null,null,null,null,null,null,null,null,""]
[null,null,null,null,null,"","","",null,"",null,null,"",null,null,null,null,null,null,null,null,""]
[null,null,null,null,null,"","","",null,"",null,null,"",null,null,null,null,null,null,null,null,""]
[null,null,null,null,null,"","","",null,"",null,null,"",null,null,null,null,null,null,null,null,""]
[null,null,null,null,null,"","","",null,"",null,null,"",null,null,null,null,null,null,null,null,""]
[null,null,null,null,null,"","","",null,"",null,null,"",null,null,null,null,null,null,null,null,""]
[null,null,null,null,null,"","","",null,"",null,null,"",null,null,null,null,null,null,null,null,""]
[null,null,null,null,null,"","","",null,"",null,null,"",null,null,null,null,null,null,null,null,""]
[null,null,null,null,null,"","","",null,"",null,null,"",null,null,null,null,null,null,null,null,""]
[null,null,null,null,null,"","","",null,"",null,null,"",null,null,null,null,null,null,null,null,""]
[null,null,null,null,null,"","","",null,"",null,null,"",null,null,null,null,null,null,null,null,""]
[null,null,null,null,null,"","","",null,"",null,null,"",null,null,null,null,null,null,null,null,""]
[null,null,null,null,null,"","","",null,"",null,null,"",null,null,null,null,null,null,null,null,""]
[null,null,null,null,null,"","","",null,"",null,null,"",null,null,null,null,null,null,null,null,""]
[null,null,null,null,null,"","","",null,"",null,null,"",null,null,null,null,null,null,null,null,""]
[null,null,null,null,null,"","","",null,"",null,null,"",null,null,null,null,null,null,null,null,""]
[null,null,null,null,null,"","","",null,"",null,null,"",null,null,null,null,null,null,null,null,""]
[null,null,null,null,null,"","","",null,"",null,null,"",null,null,null,null,null,null,null,null,""]
[null,null,null,null,null,"","","",null,"",null,null,"",null,null,null,null,null,null,null,null,""]
[null,null,null,null,null,"","","",null,"",null,null,"",null,null,null,null,null,null,null,null,""]
[null,null,null,null,null,"","","",null,"",null,null,"",null,null,null,null,null,null,null,null,""]
[null,null,null,null,null,"","","",null,"",null,null,"",null,null,null,null,null,null,null,null,""]
[null,null,null,null,null,"","","",null,"",null,null,"",null,null,null,null,null,null,null,null,""]
[null,null,null,null,null,"","","",null,"",null,null,"",null,null,null,null,null,null,null,null,""]
[null,null,null,null,null,"","","",null,"",null,null,"",null,null,null,null,null,null,null,null,""]
[null,null,null,null,null,"","","",null,"",null,null,"",null,null,null,null,null,null,null,null,""]
[null,null,null,null,null,"","","",null,"",null,null,"",null,null,null,null,null,null,null,null,""]
[null,null,null,null,null,"","","",null,"",null,null,"",null,null,null,null,null,null,null,null,""]
[null,null,null,null,null,"","","",null,"",null,null,"",null,null,null,null,null,null,null,null,""]
[null,null,null,null,null,"","","",null,"",null,null,"",null,null,null,null,null,null,null,null,""]
[null,null,null,null,null,"","","",null,"",null,null,"",null,null,null,null,null,null,null,null,""]
[null,null,null,null,null,"","","",null,"",null,null,"",null,null,null,null,null,null,null,null,""]
[null,null,null,null,null,"","","",null,"",null,null,"",null,null,null,null,null,null,null,null,""]
[null,null,null,null,null,"","","",null,"",null,null,"",null,null,null,null,null,null,null,null,""]
[null,null,null,null,null,"","","",null,"",null,null,"",null,null,null,null,null,null,null,null,""]
[null,null,null,null,null,"","","",null,"",null,null,"",null,null,null,null,null,null,null,null,""]
[null,null,null,null,null,"","","",null,"",null,null,"",null,null,null,null,null,null,null,null,""]
[null,null,null,null,null,"","","",null,"",null,null,"",null,null,null,null,null,null,null,null,""]
[null,null,null,null,null,"","","",null,"",null,null,"",null,null,null,null,null,null,null,null,""]
[null,null,null,null,null,"","","",null,"",null,null,"",null,null,null,null,null,null,null,null,""]
[null,null,null,null,null,"","","",null,"",null,null,"",null,null,null,null,null,null,null,null,""]
[null,null,null,null,null,"","","",null,"",null,null,"",null,null,null,null,null,null,null,null,""]
[null,null,null,null,null,"","","",null,"",null,null,"",null,null,null,null,null,null,null,null,""]
[null,null,null,null,null,"","","",null,"",null,null,"",null,null,null,null,null,null,null,null,""]
[null,null,null,null,null,"","","",null,"",null,null,"",null,null,null,null,null,null,null,null,""]
[null,null,null,null,null,"","","",null,"",null,null,"",null,null,null,null,null,null,null,null,""]
[null,null,null,null,null,"","","",null,"",null,null,"",null,null,null,null,null,null,null,null,""]
[null,null,null,null,null,"","","",null,"",null,null,"",null,null,null,null,null,null,null,null,""]
[null,null,null,null,null,"","","",null,"",null,null,"",null,null,null,null,null,null,null,null,""]
[null,null,null,null,null,"","","",null,"",null,null,"",null,null,null,null,null,null,null,null,""]
[null,null,null,null,null,"","","",null,"",null,null,"",null,null,null,null,null,null,null,null,""]
[null,null,null,null,null,"","","",null,"",null,null,"",null,null,null,null,null,null,null,null,""]
[null,null,null,null,null,"","","",null,"",null,null,"",null,null,null,null,null,null,null,null,""]
[null,null,null,null,null,"","","",null,"",null,null,"",null,null,null,null,null,null,null,null,""]
[null,null,null,null,null,"","","",null,"",null,null,"",null,null,null,null,null,null,null,null,""]
[null,null,null,null,null,"","","",null,"",null,null,"",null,null,null,null,null,null,null,null,""]
[null,null,null,null,null,"","","",null,"",null,null,"",null,null,null,null,null,null,null,null,""]
[null,null,null,null,null,"","","",null,"",null,null,"",null,null,null,null,null,null,null,null,""]
[null,null,null,null,null,"","","",null,"",null,null,"",null,null,null,null,null,null,null,null,""]
[null,null,null,null,null,"","","",null,"",null,null,"",null,null,null,null,null,null,null,null,""]
[null,null,null,null,null,"","","",null,"",null,null,"",null,null,null,null,null,null,null,null,""]
[null,null,null,null,null,"","","",null,"",null,null,"",null,null,null,null,null,null,null,null,""]
[null,null,null,null,null,"","",{"$f":"IF(AND(LEN(A77)>0,LEN(B77)>0),(C77+D77+E77)*F77+G77,\"\")","v":""},null,"",null,null,"",null,null,null,null,null,null,null,null,""]
[null,null,null,null,null,"",{"$f":"IF(AND(LEN(A78)>0,LEN(B78)>0),0,\"\")","v":""},"",null,{"$f":"IF(AND(LEN(A78)>0,LEN(B78)>0),I78,\"\")","v":""},null,null,{"$f":"IF(AND(LEN(A78)>0,LEN(B78)>0),SUM(J78:L78),\"\")","v":""},null,null,null,null,null,null,null,null,{"$f":"IF(AND(LEN(A78)>0,LEN(B78)>0),H78-M78+N78+O78+P78+Q78+R78+S78-T78-U78,\"\")","v":""}]
[null,null,null,null,null,{"$f":"IF(AND(LEN(A79)>0,LEN(B79)>0),0.95^10,\"\")","v":""},"","",null,"",null,null,"",null,null,null,null,null,null,null,null,""]
[null,null,null,null,null,"","","",null,"",null,null,"",null,null,null,null,null,null,null,null,""]
[null,null,null,null,null,"","","",null,"",null,null,"",null,null,null,null,null,null,null,null,""]
[null,null,null,null,null,"","","",null,"",null,null,"",null,null,null,null,null,null,null,null,""]
[null,null,null,null,null,"","","",null,"",null,null,"",null,null,null,null,null,null,null,null,""]
[null,null,null,null,null,"","","",null,"",null,null,"",null,null,null,null,null,null,null,null,""]
[null,null,null,null,null,"","","",null,"",null,null,"",null,null,null,null,null,null,null,null,""]
[null,null,null,null,null,"","","",null,"",null,null,"",null,null,null,null,null,null,null,null,""]
[null,null,null,null,null,"","","",null,"",null,null,"",null,null,null,null,null,null,null,null,""]
[null,null,null,null,null,"","","",null,"",null,null,"",null,null,null,null,null,null,null,null,""]
[null,null,null,null,null,"","","",null,"",null,null,"",null,null,null,null,null,null,null,null,""]
[null,null,null,null,null,"","","",null,"",null,null,"",null,null,null,null,null,null,null,null,""]
[null,null,null,null,null,"","","",null,"",null,null,"",null,null,null,null,null,null,null,null,""]
[null,null,null,null,null,"","","",null,"",null,null,"",null,null,null,null,null,null,null,null,""]
[null,null,null,null,null,"","","",null,"",null,null,"",null,null,null,null,null,null,null,null,""]
[null,null,null,null,null,"","","",null,"",null,null,"",null,null,null,null,null,null,null,null,""]
[null,null,null,null,null,"","","",null,"",null,null,"",null,null,null,null,null,null,null,null,""]
[null,null,null,null,null,"","","",null,"",null,null,"",null,null,null,null,null,null,null,null,""]
[null,null,null,null,null,"","","",null,"",null,null,"",null,null,null,null,null,null,null,null,""]
[null,null,null,null,null,"","","",null,"",null,null,"",null,null,null,null,null,null,null,null,""]
[null,null,null,null,null,"","","",null,"",null,null,"",null,null,null,null,null,null,null,null,""]
[null,null,null,null,null,"","","",null,"",null,null,"",null,null,null,null,null,null,null,null,""]
[null,null,null,null,null,"","","",null,"",null,null,"",null,null,null,null,null,null,null,null,""]
[null,null,null,null,null,"","","",null,"",null,null,"",null,null,null,null,null,null,null,null,""]
[null,null,null,null,null,"","","",null,"",null,null,"",null,null,null,null,null,null,null,null,""]
[null,null,null,null,null,"","","",null,"",null,null,"",null,null,null,null,null,null,null,null,""]
[null,null,null,null,null,"","","",null,"",null,null,"",null,null,null,null,null,null,null,null,""]
[null,null,null,null,null,"","","",null,"",null,null,"",null,null,null,null,null,null,null,null,""]
[null,null,null,null,null,"","","",null,"",null,null,"",null,null,null,null,null,null,null,null,""]
[null,null,null,null,null,"","","",null,"",null,null,"",null,null,null,null,null,null,null,null,""]
[null,null,null,null,null,"","","",null,"",null,null,"",null,null,null,null,null,null,null,null,""]
[null,null,null,null,null,"","","",null,"",null,null,"",null,null,null,null,null,null,null,null,""]
[null,null,null,null,null,"","","",null,"",null,null,"",null,null,null,null,null,null,null,null,""]
[null,null,null,null,null,"","","",null,"",null,null,"",null,null,null,null,null,null,null,null,""]
[null,null,null,null,null,"","","",null,"",null,null,"",null,null,null,null,null,null,null,null,""]
[null,null,null,null,null,"","","",null,"",null,null,"",null,null,null,null,null,null,null,null,""]
[null,null,null,null,null,"","","",null,"",null,null,"",null,null,null,null,null,null,null,null,""]
[null,null,null,null,null,"","","",null,"",null,null,"",null,null,null,null,null,null,null,null,""]
[null,null,null,null,null,"","","",null,"",null,null,"",null,null,null,null,null,null,null,null,""]
[null,null,null,null,null,"","","",null,"",null,null,"",null,null,null,null,null,null,null,null,""]
[null,null,null,null,null,"","","",null,"",null,null,"",null,null,null,null,null,null,null,null,""]
[null,null,null,null,null,"","","",null,"",null,null,"",null,null,null,null,null,null,null,null,""]
[null,null,null,null,null,"","","",null,"",null,null,"",null,null,null,null,null,null,null,null,""]
[null,null,null,null,null,"","","",null,"",null,null,"",null,null,null,null,null,null,null,null,""]
[null,null,null,null,null,"","","",null,"",null,null,"",null,null,null,null,null,null,null,null,""]
[null,null,null,null,null,"","","",null,"",null,null,"",null,null,null,null,null,null,null,null,""]
[null,null,null,null,null,"","","",null,"",null,null,"",null,null,null,null,null,null,null,null,""]
[null,null,null,null,null,"","","",null,"",null,null,"",null,null,null,null,null,null,null,null,""]
[null,null,null,null,null,"","","",null,"",null,null,"",null,null,null,null,null,null,null,null,""]
[null,null,null,null,null,"","","",null,"",null,null,"",null,null,null,null,null,null,null,null,""]
[null,null,null,null,null,"","","",null,"",null,null,"",null,null,null,null,null,null,null,null,""]
[null,null,null,null,null,"","","",null,"",null,null,"",null,null,null,null,null,null,null,null,""]
[null,null,null,null,null,"","","",null,"",null,null,"",null,null,null,null,null,null,null,null,""]
[null,null,null,null,null,"","","",null,"",null,null,"",null,null,null,null,null,null,null,null,""]
[null,null,null,null,null,"","","",null,"",null,null,"",null,null,null,null,null,null,null,null,""]
[null,null,null,null,null,"","","",null,"",null,null,"",null,null,null,null,null,null,null,null,""]
[null,null,null,null,null,"","","",null,"",null,null,"",null,null,null,null,null,null,null,null,""]
[null,null,null,null,null,"","","",null,"",null,null,"",null,null,null,null,null,null,null,null,""]
[null,null,null,null,null,"","","",null,"",null,null,"",null,null,null,null,null,null,null,null,""]
[null,null,null,null,null,"","","",null,"",null,null,"",null,null,null,null,null,null,null,null,""]
[null,null,null,null,null,"","","",null,"",null,null,"",null,null,null,null,null,null,null,null,""]
[null,null,null,null,null,"","","",null,"",null,null,"",null,null,null,null,null,null,null,null,""]
[null,null,null,null,null,"","",{"$f":"IF(AND(LEN(A141)>0,LEN(B141)>0),(C141+D141+E141)*F141+G141,\"\")","v":""},null,"",null,null,"",null,null,null,null,null,null,null,null,""]
[null,null,null,null,null,"",{"$f":"IF(AND(LEN(A142)>0,LEN(B142)>0),0,\"\")","v":""},"",null,{"$f":"IF(AND(LEN(A142)>0,LEN(B142)>0),I142,\"\")","v":""},null,null,{"$f":"IF(AND(LEN(A142)>0,LEN(B142)>0),SUM(J142:L142),\"\")","v":""},null,null,null,null,null,null,null,null,{"$f":"IF(AND(LEN(A142)>0,LEN(B142)>0),H142-M142+N142+O142+P142+Q142+R142+S142-T142-U142,\"\")","v":""}]
[null,null,null,null,null,{"$f":"IF(AND(LEN(A143)>0,LEN(B143)>0),0.95^10,\"\")","v":""},"","",null,"",null,null,"",null,null,null,null,null,null,null,null,""]
[null,null,null,null,null,"","","",null,"",null,null,"",null,null,null,null,null,null,null,null,""]
[null,null,null,null,null,"","","",null,"",null,null,"",null,null,null,null,null,null,null,null,""]
[null,null,null,null,null,"","","",null,"",null,null,"",null,null,null,null,null,null,null,null,""]
[null,null,null,null,null,"","","",null,"",null,null,"",null,null,null,null,null,null,null,null,""]
[null,null,null,null,null,"","","",null,"",null,null,"",null,null,null,null,null,null,null,null,""]
[null,null,null,null,null,"","","",null,"",null,null,"",null,null,null,null,null,null,null,null,""]
[null,null,null,null,null,"","","",null,"",null,null,"",null,null,null,null,null,null,null,null,""]
[null,null,null,null,null,"","","",null,"",null,null,"",null,null,null,null,null,null,null,null,""]
[null,null,null,null,null,"","","",null,"",null,null,"",null,null,null,null,null,null,null,null,""]
[null,null,null,null,null,"","","",null,"",null,null,"",null,null,null,null,null,null,null,null,""]
[null,null,null,null,null,"","","",null,"",null,null,"",null,null,null,null,null,null,null,null,""]
[null,null,null,null,null,"","","",null,"",null,null,"",null,null,null,null,null,null,null,null,""]
[null,null,null,null,null,"","","",null,"",null,null,"",null,null,null,null,null,null,null,null,""]
[null,null,null,null,null,"","","",null,"",null,null,"",null,null,null,null,null,null,null,null,""]
[null,null,null,null,null,"","","",null,"",null,null,"",null,null,null,null,null,null,null,null,""]
[null,null,null,null,null,"","","",null,"",null,null,"",null,null,null,null,null,null,null,null,""]
[null,null,null,null,null,"","","",null,"",null,null,"",null,null,null,null,null,null,null,null,""]
[null,null,null,null,null,"","","",null,"",null,null,"",null,null,null,null,null,null,null,null,""]
[null,null,null,null,null,"","","",null,"",null,null,"",null,null,null,null,null,null,null,null,""]
[null,null,null,null,null,"","","",null,"",null,null,"",null,null,null,null,null,null,null,null,""]
[null,null,null,null,null,"","","",null,"",null,null,"",null,null,null,null,null,null,null,null,""]
[null,null,null,null,null,"","","",null,"",null,null,"",null,null,null,null,null,null,null,null,""]
[null,null,null,null,null,"","","",null,"",null,null,"",null,null,null,null,null,null,null,null,""]
[null,null,null,null,null,"","","",null,"",null,null,"",null,null,null,null,null,null,null,null,""]
[null,null,null,null,null,"","","",null,"",null,null,"",null,null,null,null,null,null,null,null,""]
[null,null,null,null,null,"","","",null,"",null,null,"",null,null,null,null,null,null,null,null,""]
[null,null,null,null,null,"","","",null,"",null,null,"",null,null,null,null,null,null,null,null,""]
[null,null,null,null,null,"","","",null,"",null,null,"",null,null,null,null,null,null,null,null,""]
[null,null,null,null,null,"","","",null,"",null,null,"",null,null,null,null,null,null,null,null,""]
[null,null,null,null,null,"","","",null,"",null,null,"",null,null,null,null,null,null,null,null,""]
[null,null,null,null,null,"","","",null,"",null,null,"",null,null,null,null,null,null,null,null,""]
[null,null,null,null,null,"","","",null,"",null,null,"",null,null,null,null,null,null,null,null,""]
[null,null,null,null,null,"","","",null,"",null,null,"",null,null,null,null,null,null,null,null,""]
[null,null,null,null,null,"","","",null,"",null,null,"",null,null,null,null,null,null,null,null,""]
[null,null,null,null,null,"","","",null,"",null,null,"",null,null,null,null,null,null,null,null,""]
[null,null,null,null,null,"","","",null,"",null,null,"",null,null,null,null,null,null,null,null,""]
[null,null,null,null,null,"","","",null,"",null,null,"",null,null,null,null,null,null,null,null,""]
[null,null,null,null,null,"","","",null,"",null,null,"",null,null,null,null,null,null,null,null,""]
[null,null,null,null,null,"","","",null,"",null,null,"",null,null,null,null,null,null,null,null,""]
[null,null,null,null,null,"","","",null,"",null,null,"",null,null,null,null,null,null,null,null,""]
[null,null,null,null,null,"","","",null,"",null,null,"",null,null,null,null,null,null,null,null,""]
[null,null,null,null,null,"","","",null,"",null,null,"",null,null,null,null,null,null,null,null,""]
[null,null,null,null,null,"","","",null,"",null,null,"",null,null,null,null,null,null,null,null,""]
[null,null,null,null,null,"","","",null,"",null,null,"",null,null,null,null,null,null,null,null,""]
[null,null,null,null,null,"","","",null,"",null,null,"",null,null,null,null,null,null,null,null,""]
[null,null,null,null,null,"","","",null,"",null,null,"",null,null,null,null,null,null,null,null,""]
[null,null,null,null,null,"","","",null,"",null,null,"",null,null,null,null,null,null,null,null,""]
[null,null,null,null,null,"","","",null,"",null,null,"",null,null,null,null,null,null,null,null,""]
[null,null,null,null,null,"","","",null,"",null,null,"",null,null,null,null,null,null,null,null,""]
[null,null,null,null,null,"","","",null,"",null,null,"",null,null,null,null,null,null,null,null,""]
[null,null,null,null,null,"","","",null,"",null,null,"",null,null,null,null,null,null,null,null,""]
[null,null,null,null,null,"","","",null,"",null,null,"",null,null,null,null,null,null,null,null,""]
[null,null,null,null,null,"","","",null,"",null,null,"",null,null,null,null,null,null,null,null,""]
[null,null,null,null,null,"","","",null,"",null,null,"",null,null,null,null,null,null,null,null,""]
[null,null,null,null,null,"","","",null,"",null,null,"",null,null,null,null,null,null,null,null,""]
[null,null,null,null,null,"","","",null,"",null,null,"",null,null,null,null,null,null,null,null,""]
[null,null,null,null,null,"","","",null,"",null,null,"",null,null,null,null,null,null,null,null,""]
[null,null,null,null,null,"","","",null,"",null,null,"",null,null,null,null,null,null,null,null,""]
[null,null,null,null,null,"","","",null,"",null,null,"",null,null,null,null,null,null,null,null,""]
[null,null,null,null,null,"","","",null,"",null,null,"",null,null,null,null,null,null,null,null,""]
[null,null,null,null,null,"","","",null,"",null,null,"",null,null,null,null,null,null,null,null,""]
[null,null,null,null,null,"","",{"$f":"IF(AND(LEN(A205)>0,LEN(B205)>0),(C205+D205+E205)*F205+G205,\"\")","v":""},null,"",null,null,"",null,null,null,null,null,null,null,null,""]
[null,null,null,null,null,"",{"$f":"IF(AND(LEN(A206)>0,LEN(B206)>0),0,\"\")","v":""},"",null,{"$f":"IF(AND(LEN(A206)>0,LEN(B206)>0),I206,\"\")","v":""},null,null,{"$f":"IF(AND(LEN(A206)>0,LEN(B206)>0),SUM(J206:L206),\"\")","v":""},null,null,null,null,null,null,null,null,{"$f":"IF(AND(LEN(A206)>0,LEN(B206)>0),H206-M206+N206+O206+P206+Q206+R206+S206-T206-U206,\"\")","v":""}]
[null,null,null,null,null,{"$f":"IF(AND(LEN(A207)>0,LEN(B207)>0),0.95^10,\"\")","v":""},"","",null,"",null,null,"",null,null,null,null,null,null,null,null,""]
[null,null,null,null,null,"","","",null,"",null,null,"",null,null,null,null,null,null,null,null,""]
[null,null,null,null,null,"","","",null,"",null,null,"",null,null,null,null,null,null,null,null,""]
[null,null,null,null,null,"","","",null,"",null,null,"",null,null,null,null,null,null,null,null,""]
[null,null,null,null,null,"","","",null,"",null,null,"",null,null,null,null,null,null,null,null,""]
[null,null,null,null,null,"","","",null,"",null,null,"",null,null,null,null,null,null,null,null,""]
[null,null,null,null,null,"","","",null,"",null,null,"",null,null,null,null,null,null,null,null,""]
[null,null,null,null,null,"","","",null,"",null,null,"",null,null,null,null,null,null,null,null,""]
[null,null,null,null,null,"","","",null,"",null,null,"",null,null,null,null,null,null,null,null,""]
[null,null,null,null,null,"","","",null,"",null,null,"",null,null,null,null,null,null,null,null,""]
[null,null,null,null,null,"","","",null,"",null,null,"",null,null,null,null,null,null,null,null,""]
[null,null,null,null,null,"","","",null,"",null,null,"",null,null,null,null,null,null,null,null,""]
[null,null,null,null,null,"","","",null,"",null,null,"",null,null,null,null,null,null,null,null,""]
[null,null,null,null,null,"","","",null,"",null,null,"",null,null,null,null,null,null,null,null,""]
[null,null,null,null,null,"","","",null,"",null,null,"",null,null,null,null,null,null,null,null,""]
[null,null,null,null,null,"","","",null,"",null,null,"",null,null,null,null,null,null,null,null,""]
[null,null,null,null,null,"","","",null,"",null,null,"",null,null,null,null,null,null,null,null,""]
[null,null,null,null,null,"","","",null,"",null,null,"",null,null,null,null,null,null,null,null,""]
[null,null,null,null,null,"","","",null,"",null,null,"",null,null,null,null,null,null,null,null,""]
[null,null,null,null,null,"","","",null,"",null,null,"",null,null,null,null,null,null,null,null,""]
[null,null,null,null,null,"","","",null,"",null,null,"",null,null,null,null,null,null,null,null,""]
[null,null,null,null,null,"","","",null,"",null,null,"",null,null,null,null,null,null,null,null,""]
[null,null,null,null,null,"","","",null,"",null,null,"",null,null,null,null,null,null,null,null,""]
[null,null,null,null,null,"","","",null,"",null,null,"",null,null,null,null,null,null,null,null,""]
[null,null,null,null,null,"","","",null,"",null,null,"",null,null,null,null,null,null,null,null,""]
[null,null,null,null,null,"","","",null,"",null,null,"",null,null,null,null,null,null,null,null,""]
[null,null,null,null,null,"","","",null,"",null,null,"",null,null,null,null,null,null,null,null,""]
[null,null,null,null,null,"","","",null,"",null,null,"",null,null,null,null,null,null,null,null,""]
[null,null,null,null,null,"","","",null,"",null,null,"",null,null,null,null,null,null,null,null,""]
[null,null,null,null,null,"","","",null,"",null,null,"",null,null,null,null,null,null,null,null,""]
[null,null,null,null,null,"","","",null,"",null,null,"",null,null,null,null,null,null,null,null,""]
[null,null,null,null,null,"","","",null,"",null,null,"",null,null,null,null,null,null,null,null,""]
[null,null,null,null,null,"","","",null,"",null,null,"",null,null,null,null,null,null,null,null,""]
[null,null,null,null,null,"","","",null,"",null,null,"",null,null,null,null,null,null,null,null,""]
[null,null,null,null,null,"","","",null,"",null,null,"",null,null,null,null,null,null,null,null,""]
[null,null,null,null,null,"","","",null,"",null,null,"",null,null,null,null,null,null,null,null,""]
[null,null,null,null,null,"","","",null,"",null,null,"",null,null,null,null,null,null,null,null,""]
[null,null,null,null,null,"","","",null,"",null,null,"",null,null,null,null,null,null,null,null,""]
[null,null,null,null,null,"","","",null,"",null,null,"",null,null,null,null,null,null,null,null,""]
[null,null,null,null,null,"","","",null,"",null,null,"",null,null,null,null,null,null,null,null,""]
[null,null,null,null,null,"","","",null,"",null,null,"",null,null,null,null,null,null,null,null,""]
[null,null,null,null,null,"","","",null,"",null,null,"",null,null,null,null,null,null,null,null,""]
[null,null,null,null,null,"","","",null,"",null,null,"",null,null,null,null,null,null,null,null,""]
[null,null,null,null,null,"","","",null,"",null,null,"",null,null,null,null,null,null,null,null,""]
[null,null,null,null,null,"","","",null,"",null,null,"",null,null,null,null,null,null,null,null,""]
[null,null,null,null,null,"","","",null,"",null,null,"",null,null,null,null,null,null,null,null,""]
[null,null,null,null,null,"","","",null,"",null,null,"",null,null,null,null,null,null,null,null,""]
[null,null,null,null,null,"","","",null,"",null,null,"",null,null,null,null,null,null,null,null,""]
[null,null,null,null,null,"","","",null,"",null,null,"",null,null,null,null,null,null,null,null,""]
[null,null,null,null,null,"","","",null,"",null,null,"",null,null,null,null,null,null,null,null,""]
[null,null,null,null,null,"","","",null,"",null,null,"",null,null,null,null,null,null,null,null,""]
[null,null,null,null,null,"","","",null,"",null,null,"",null,null,null,null,null,null,null,null,""]
[null,null,null,null,null,"","","",null,"",null,null,"",null,null,null,null,null,null,null,null,""]
[null,null,null,null,null,"","","",null,"",null,null,"",null,null,null,null,null,null,null,null,""]
[null,null,null,null,null,"","","",null,"",null,null,"",null,null,null,null,null,null,null,null,""]
[null,null,null,null,null,"","","",null,"",null,null,"",null,null,null,null,null,null,null,null,""]
[null,null,null,null,null,"","","",null,"",null,null,"",null,null,null,null,null,null,null,null,""]
[null,null,null,null,null,"","","",null,"",null,null,"",null,null,null,null,null,null,null,null,""]
[null,null,null,null,null,"","","",null,"",null,null,"",null,null,null,null,null,null,null,null,""]
[null,null,null,null,null,"","","",null,"",null,null,"",null,null,null,null,null,null,null,null,""]
[null,null,null,null,null,"","","",null,"",null,null,"",null,null,null,null,null,null,null,null,""]
[null,null,null,null,null,"","","",null,"",null,null,"",null,null,null,null,null,null,null,null,""]
[null,null,null,null,null,"","",{"$f":"IF(AND(LEN(A269)>0,LEN(B269)>0),(C269+D269+E269)*F269+G269,\"\")","v":""},null,"",null,null,"",null,null,null,null,null,null,null,null,""]
[null,null,null,null,null,"",{"$f":"IF(AND(LEN(A270)>0,LEN(B270)>0),0,\"\")","v":""},"",null,{"$f":"IF(AND(LEN(A270)>0,LEN(B270)>0),I270,\"\")","v":""},null,null,{"$f":"IF(AND(LEN(A270)>0,LEN(B270)>0),SUM(J270:L270),\"\")","v":""},null,null,null,null,null,null,null,null,{"$f":"IF(AND(LEN(A270)>0,LEN(B270)>0),H270-M270+N270+O270+P270+Q270+R270+S270-T270-U270,\"\")","v":""}]
[null,null,null,null,null,{"$f":"IF(AND(LEN(A271)>0,LEN(B271)>0),0.95^10,\"\")","v":""},"","",null,"",null,null,"",null,null,null,null,null,null,null,null,""]
[null,null,null,null,null,"","","",null,"",null,null,"",null,null,null,null,null,null,null,null,""]
[null,null,null,null,null,"","","",null,"",null,null,"",null,null,null,null,null,null,null,null,""]
[null,null,null,null,null,"","","",null,"",null,null,"",null,null,null,null,null,null,null,null,""]
[null,null,null,null,null,"","","",null,"",null,null,"",null,null,null,null,null,null,null,null,""]
[null,null,null,null,null,"","","",null,"",null,null,"",null,null,null,null,null,null,null,null,""]
[null,null,null,null,null,"","","",null,"",null,null,"",null,null,null,null,null,null,null,null,""]
[null,null,null,null,null,"","","",null,"",null,null,"",null,null,null,null,null,null,null,null,""]
[null,null,null,null,null,"","","",null,"",null,null,"",null,null,null,null,null,null,null,null,""]
[null,null,null,null,null,"","","",null,"",null,null,"",null,null,null,null,null,null,null,null,""]
[null,null,null,null,null,"","","",null,"",null,null,"",null,null,null,null,null,null,null,null,""]
[null,null,null,null,null,"","","",null,"",null,null,"",null,null,null,null,null,null,null,null,""]
[null,null,null,null,null,"","","",null,"",null,null,"",null,null,null,null,null,null,null,null,""]
[null,null,null,null,null,"","","",null,"",null,null,"",null,null,null,null,null,null,null,null,""]
[null,null,null,null,null,"","","",null,"",null,null,"",null,null,null,null,null,null,null,null,""]
[null,null,null,null,null,"","","",null,"",null,null,"",null,null,null,null,null,null,null,null,""]
[null,null,null,null,null,"","","",null,"",null,null,"",null,null,null,null,null,null,null,null,""]
[null,null,null,null,null,"","","",null,"",null,null,"",null,null,null,null,null,null,null,null,""]
[null,null,null,null,null,"","","",null,"",null,null,"",null,null,null,null,null,null,null,null,""]
[null,null,null,null,null,"","","",null,"",null,null,"",null,null,null,null,null,null,null,null,""]
[null,null,null,null,null,"","","",null,"",null,null,"",null,null,null,null,null,null,null,null,""]
[null,null,null,null,null,"","","",null,"",null,null,"",null,null,null,null,null,null,null,null,""]
[null,null,null,null,null,"","","",null,"",null,null,"",null,null,null,null,null,null,null,null,""]
[null,null,null,null,null,"","","",null,"",null,null,"",null,null,null,null,null,null,null,null,""]
[null,null,null,null,null,"","","",null,"",null,null,"",null,null,null,null,null,null,null,null,""]
[null,null,null,null,null,"","","",null,"",null,null,"",null,null,null,null,null,null,null,null,""]
[null,null,null,null,null,"","","",null,"",null,null,"",null,null,null,null,null,null,null,null,""]
[null,null,null,null,null,"","","",null,"",null,null,"",null,null,null,null,null,null,null,null,""]
[null,null,null,null,null,"","","",null,"",null,null,"",null,null,null,null,null,null,null,null,""]
[null,null,null,null,null,"","","",null,"",null,null,"",null,null,null,null,null,null,null,null,""]
[null,null,null,null,null,"","","",null,"",null,null,"",null,null,null,null,null,null,null,null,""]
[null,null,null,null,null,"","","",null,"",null,null,"",null,null,null,null,null,null,null,null,""]
[null,null,null,null,null,"","","",null,"",null,null,"",null,null,null,null,null,null,null,null,""]
[null,null,null,null,null,"","","",null,"",null,null,"",null,null,null,null,null,null,null,null,""]
[null,null,null,null,null,"","","",null,"",null,null,"",null,null,null,null,null,null,null,null,""]
[null,null,null,null,null,"","","",null,"",null,null,"",null,null,null,null,null,null,null,null,""]
[null,null,null,null,null,"","","",null,"",null,null,"",null,null,null,null,null,null,null,null,""]
[null,null,null,null,null,"","","",null,"",null,null,"",null,null,null,null,null,null,null,null,""]
[null,null,null,null,null,"","","",null,"",null,null,"",null,null,null,null,null,null,null,null,""]
[null,null,null,null,null,"","","",null,"",null,null,"",null,null,null,null,null,null,null,null,""]
[null,null,null,null,null,"","","",null,"",null,null,"",null,null,null,null,null,null,null,null,""]
[null,null,null,null,null,"","","",null,"",null,null,"",null,null,null,null,null,null,null,null,""]
[null,null,null,null,null,"","","",null,"",null,null,"",null,null,null,null,null,null,null,null,""]
[null,null,null,null,null,"","","",null,"",null,null,"",null,null,null,null,null,null,null,null,""]
[null,null,null,null,null,"","","",null,"",null,null,"",null,null,null,null,null,null,null,null,""]
[null,null,null,null,null,"","","",null,"",null,null,"",null,null,null,null,null,null,null,null,""]
[null,null,null,null,null,"","","",null,"",null,null,"",null,null,null,null,null,null,null,null,""]
[null,null,null,null,null,"","","",null,"",null,null,"",null,null,null,null,null,null,null,null,""]
[null,null,null,null,null,"","","",null,"",null,null,"",null,null,null,null,null,null,null,null,""]
[null,null,null,null,null,"","","",null,"",null,null,"",null,null,null,null,null,null,null,null,""]
[null,null,null,null,null,"","","",null,"",null,null,"",null,null,null,null,null,null,null,null,""]
[null,null,null,null,null,"","","",null,"",null,null,"",null,null,null,null,null,null,null,null,""]
[null,null,null,null,null,"","","",null,"",null,null,"",null,null,null,null,null,null,null,null,""]
[null,null,null,null,null,"","","",null,"",null,null,"",null,null,null,null,null,null,null,null,""]
[null,null,null,null,null,"","","",null,"",null,null,"",null,null,null,null,null,null,null,null,""]
[null,null,null,null,null,"","","",null,"",null,null,"",null,null,null,null,null,null,null,null,""]
[null,null,null,null,null,"","","",null,"",null,null,"",null,null,null,null,null,null,null,null,""]
[null,null,null,null,null,"","","",null,"",null,null,"",null,null,null,null,null,null,null,null,""]
[null,null,null,null,null,"","","",null,"",null,null,"",null,null,null,null,null,null,null,null,""]
[null,null,null,null,null,"","","",null,"",null,null,"",null,null,null,null,null,null,null,null,""]
[null,null,null,null,null,"","","",null,"",null,null,"",null,null,null,null,null,null,null,null,""]
[null,null,null,null,null,"","","",null,"",null,null,"",null,null,null,null,null,null,null,null,""]
[null,null,null,null,null,"","",{"$f":"IF(AND(LEN(A333)>0,LEN(B333)>0),(C333+D333+E333)*F333+G333,\"\")","v":""},null,"",null,null,"",null,null,null,null,null,null,null,null,""]
[null,null,null,null,null,"",{"$f":"IF(AND(LEN(A334)>0,LEN(B334)>0),0,\"\")","v":""},"",null,{"$f":"IF(AND(LEN(A334)>0,LEN(B334)>0),I334,\"\")","v":""},null,null,{"$f":"IF(AND(LEN(A334)>0,LEN(B334)>0),SUM(J334:L334),\"\")","v":""},null,null,null,null,null,null,null,null,{"$f":"IF(AND(LEN(A334)>0,LEN(B334)>0),H334-M334+N334+O334+P334+Q334+R334+S334-T334-U334,\"\")","v":""}]
[null,null,null,null,null,{"$f":"IF(AND(LEN(A335)>0,LEN(B335)>0),0.95^10,\"\")","v":""},"","",null,"",null,null,"",null,null,null,null,null,null,null,null,""]
[null,null,null,null,null,"","","",null,"",null,null,"",null,null,null,null,null,null,null,null,""]
[null,null,null,null,null,"","","",null,"",null,null,"",null,null,null,null,null,null,null,null,""]
[null,null,null,null,null,"","","",null,"",null,null,"",null,null,null,null,null,null,null,null,""]
[null,null,null,null,null,"","","",null,"",null,null,"",null,null,null,null,null,null,null,null,""]
[null,null,null,null,null,"","","",null,"",null,null,"",null,null,null,null,null,null,null,null,""]
[null,null,null,null,null,"","","",null,"",null,null,"",null,null,null,null,null,null,null,null,""]
[null,null,null,null,null,"","","",null,"",null,null,"",null,null,null,null,null,null,null,null,""]
[null,null,null,null,null,"","","",null,"",null,null,"",null,null,null,null,null,null,null,null,""]
[null,null,null,null,null,"","","",null,"",null,null,"",null,null,null,null,null,null,null,null,""]
[null,null,null,null,null,"","","",null,"",null,null,"",null,null,null,null,null,null,null,null,""]
[null,null,null,null,null,"","","",null,"",null,null,"",null,null,null,null,null,null,null,null,""]
[null,null,null,null,null,"","","",null,"",null,null,"",null,null,null,null,null,null,null,null,""]
[null,null,null,null,null,"","","",null,"",null,null,"",null,null,null,null,null,null,null,null,""]
[null,null,null,null,null,"","","",null,"",null,null,"",null,null,null,null,null,null,null,null,""]
[null,null,null,null,null,"","","",null,"",null,null,"",null,null,null,null,null,null,null,null,""]
[null,null,null,null,null,"","","",null,"",null,null,"",null,null,null,null,null,null,null,null,""]
[null,null,null,null,null,"","","",null,"",null,null,"",null,null,null,null,null,null,null,null,""]
[null,null,null,null,null,"","","",null,"",null,null,"",null,null,null,null,null,null,null,null,""]
[null,null,null,null,null,"","","",null,"",null,null,"",null,null,null,null,null,null,null,null,""]
[null,null,null,null,null,"","","",null,"",null,null,"",null,null,null,null,null,null,null,null,""]
[null,null,null,null,null,"","","",null,"",null,null,"",null,null,null,null,null,null,null,null,""]
[null,null,null,null,null,"","","",null,"",null,null,"",null,null,null,null,null,null,null,null,""]
[null,null,null,null,null,"","","",null,"",null,null,"",null,null,null,null,null,null,null,null,""]
[null,null,null,null,null,"","","",null,"",null,null,"",null,null,null,null,null,null,null,null,""]
[null,null,null,null,null,"","","",null,"",null,null,"",null,null,null,null,null,null,null,null,""]
[null,null,null,null,null,"","","",null,"",null,null,"",null,null,null,null,null,null,null,null,""]
[null,null,null,null,null,"","","",null,"",null,null,"",null,null,null,null,null,null,null,null,""]
[null,null,null,null,null,"","","",null,"",null,null,"",null,null,null,null,null,null,null,null,""]
[null,null,null,null,null,"","","",null,"",null,null,"",null,null,null,null,null,null,null,null,""]
[null,null,null,null,null,"","","",null,"",null,null,"",null,null,null,null,null,null,null,null,""]
[null,null,null,null,null,"","","",null,"",null,null,"",null,null,null,null,null,null,null,null,""]
[null,null,null,null,null,"","","",null,"",null,null,"",null,null,null,null,null,null,null,null,""]
[null,null,null,null,null,"","","",null,"",null,null,"",null,null,null,null,null,null,null,null,""]
[null,null,null,null,null,"","","",null,"",null,null,"",null,null,null,null,null,null,null,null,""]
[null,null,null,null,null,"","","",null,"",null,null,"",null,null,null,null,null,null,null,null,""]
[null,null,null,null,null,"","","",null,"",null,null,"",null,null,null,null,null,null,null,null,""]
[null,null,null,null,null,"","","",null,"",null,null,"",null,null,null,null,null,null,null,null,""]
[null,null,null,null,null,"","","",null,"",null,null,"",null,null,null,null,null,null,null,null,""]
[null,null,null,null,null,"","","",null,"",null,null,"",null,null,null,null,null,null,null,null,""]
[null,null,null,null,null,"","","",null,"",null,null,"",null,null,null,null,null,null,null,null,""]
[null,null,null,null,null,"","","",null,"",null,null,"",null,null,null,null,null,null,null,null,""]
[null,null,null,null,null,"","","",null,"",null,null,"",null,null,null,null,null,null,null,null,""]
[null,null,null,null,null,"","","",null,"",null,null,"",null,null,null,null,null,null,null,null,""]
[null,null,null,null,null,"","","",null,"",null,null,"",null,null,null,null,null,null,null,null,""]
[null,null,null,null,null,"","","",null,"",null,null,"",null,null,null,null,null,null,null,null,""]
[null,null,null,null,null,"","","",null,"",null,null,"",null,null,null,null,null,null,null,null,""]
[null,null,null,null,null,"","","",null,"",null,null,"",null,null,null,null,null,null,null,null,""]
[null,null,null,null,null,"","","",null,"",null,null,"",null,null,null,null,null,null,null,null,""]
[null,null,null,null,null,"","","",null,"",null,null,"",null,null,null,null,null,null,null,null,""]
[null,null,null,null,null,"","","",null,"",null,null,"",null,null,null,null,null,null,null,null,""]
[null,null,null,null,null,"","","",null,"",null,null,"",null,null,null,null,null,null,null,null,""]
[null,null,null,null,null,"","","",null,"",null,null,"",null,null,null,null,null,null,null,null,""]
[null,null,null,null,null,"","","",null,"",null,null,"",null,null,null,null,null,null,null,null,""]
[null,null,null,null,null,"","","",null,"",null,null,"",null,null,null,null,null,null,null,null,""]
[null,null,null,null,null,"","","",null,"",null,null,"",null,null,null,null,null,null,null,null,""]
[null,null,null,null,null,"","","",null,"",null,null,"",null,null,null,null,null,null,null,null,""]
[null,null,null,null,null,"","","",null,"",null,null,"",null,null,null,null,null,null,null,null,""]
[null,null,null,null,null,"","","",null,"",null,null,"",null,null,null,null,null,null,null,null,""]
[null,null,null,null,null,"","","",null,"",null,null,"",null,null,null,null,null,null,null,null,""]
[null,null,null,null,null,"","","",null,"",null,null,"",null,null,null,null,null,null,null,null,""]
[null,null,null,null,null,"","","",null,"",null,null,"",null,null,null,null,null,null,null,null,""]
[null,null,null,null,null,"","",{"$f":"IF(AND(LEN(A397)>0,LEN(B397)>0),(C397+D397+E397)*F397+G397,\"\")","v":""},null,"",null,null,"",null,null,null,null,null,null,null,null,""]
[null,null,null,null,null,"",{"$f":"IF(AND(LEN(A398)>0,LEN(B398)>0),0,\"\")","v":""},"",null,{"$f":"IF(AND(LEN(A398)>0,LEN(B398)>0),I398,\"\")","v":""},null,null,{"$f":"IF(AND(LEN(A398)>0,LEN(B398)>0),SUM(J398:L398),\"\")","v":""},null,null,null,null,null,null,null,null,{"$f":"IF(AND(LEN(A398)>0,LEN(B398)>0),H398-M398+N398+O398+P398+Q398+R398+S398-T398-U398,\"\")","v":""}]
[null,null,null,null,null,{"$f":"IF(AND(LEN(A399)>0,LEN(B399)>0),0.95^10,\"\")","v":""},"","",null,"",null,null,"",null,null,null,null,null,null,null,null,""]
[null,null,null,null,null,"","","",null,"",null,null,"",null,null,null,null,null,null,null,null,""]
[null,null,null,null,null,"","","",null,"",null,null,"",null,null,null,null,null,null,null,null,""]
[null,null,null,null,null,"","","",null,"",null,null,"",null,null,null,null,null,null,null,null,""]
[null,null,null,null,null,"","","",null,"",null,null,"",null,null,null,null,null,null,null,null,""]
[null,null,null,null,null,"","","",null,"",null,null,"",null,null,null,null,null,null,null,null,""]
[null,null,null,null,null,"","","",null,"",null,null,"",null,null,null,null,null,null,null,null,""]
[null,null,null,null,null,"","","",null,"",null,null,"",null,null,null,null,null,null,null,null,""]
[null,null,null,null,null,"","","",null,"",null,null,"",null,null,null,null,null,null,null,null,""]
[null,null,null,null,null,"","","",null,"",null,null,"",null,null,null,null,null,null,null,null,""]
[null,null,null,null,null,"","","",null,"",null,null,"",null,null,null,null,null,null,null,null,""]
[null,null,null,null,null,"","","",null,"",null,null,"",null,null,null,null,null,null,null,null,""]
[null,null,null,null,null,"","","",null,"",null,null,"",null,null,null,null,null,null,null,null,""]
[null,null,null,null,null,"","","",null,"",null,null,"",null,null,null,null,null,null,null,null,""]
[null,null,null,null,null,"","","",null,"",null,null,"",null,null,null,null,null,null,null,null,""]
[null,null,null,null,null,"","","",null,"",null,null,"",null,null,null,null,null,null,null,null,""]
[null,null,null,null,null,"","","",null,"",null,null,"",null,null,null,null,null,null,null,null,""]
[null,null,null,null,null,"","","",null,"",null,null,"",null,null,null,null,null,null,null,null,""]
[null,null,null,null,null,"","","",null,"",null,null,"",null,null,null,null,null,null,null,null,""]
[null,null,null,null,null,"","","",null,"",null,null,"",null,null,null,null,null,null,null,null,""]
[null,null,null,null,null,"","","",null,"",null,null,"",null,null,null,null,null,null,null,null,""]
[null,null,null,null,null,"","","",null,"",null,null,"",null,null,null,null,null,null,null,null,""]
[null,null,null,null,null,"","","",null,"",null,null,"",null,null,null,null,null,null,null,null,""]
[null,null,null,null,null,"","","",null,"",null,null,"",null,null,null,null,null,null,null,null,""]
[null,null,null,null,null,"","","",null,"",null,null,"",null,null,null,null,null,null,null,null,""]
[null,null,null,null,null,"","","",null,"",null,null,"",null,null,null,null,null,null,null,null,""]
[null,null,null,null,null,"","","",null,"",null,null,"",null,null,null,null,null,null,null,null,""]
[null,null,null,null,null,"","","",null,"",null,null,"",null,null,null,null,null,null,null,null,""]
[null,null,null,null,null,"","","",null,"",null,null,"",null,null,null,null,null,null,null,null,""]
[null,null,null,null,null,"","","",null,"",null,null,"",null,null,null,null,null,null,null,null,""]
[null,null,null,null,null,"","","",null,"",null,null,"",null,null,null,null,null,null,null,null,""]
[null,null,null,null,null,"","","",null,"",null,null,"",null,null,null,null,null,null,null,null,""]
[null,null,null,null,null,"","","",null,"",null,null,"",null,null,null,null,null,null,null,null,""]
[null,null,null,null,null,"","","",null,"",null,null,"",null,null,null,null,null,null,null,null,""]
[null,null,null,null,null,"","","",null,"",null,null,"",null,null,null,null,null,null,null,null,""]
[null,null,null,null,null,"","","",null,"",null,null,"",null,null,null,null,null,null,null,null,""]
[null,null,null,null,null,"","","",null,"",null,null,"",null,null,null,null,null,null,null,null,""]
[null,null,null,null,null,"","","",null,"",null,null,"",null,null,null,null,null,null,null,null,""]
[null,null,null,null,null,"","","",null,"",null,null,"",null,null,null,null,null,null,null,null,""]
[null,null,null,null,null,"","","",null,"",null,null,"",null,null,null,null,null,null,null,null,""]
[null,null,null,null,null,"","","",null,"",null,null,"",null,null,null,null,null,null,null,null,""]
[null,null,null,null,null,"","","",null,"",null,null,"",null,null,null,null,null,null,null,null,""]
[null,null,null,null,null,"","","",null,"",null,null,"",null,null,null,null,null,null,null,null,""]
[null,null,null,null,null,"","","",null,"",null,null,"",null,null,null,null,null,null,null,null,""]
[null,null,null,null,null,"","","",null,"",null,null,"",null,null,null,null,null,null,null,null,""]
[null,null,null,null,null,"","","",null,"",null,null,"",null,null,null,null,null,null,null,null,""]
[null,null,null,null,null,"","","",null,"",null,null,"",null,null,null,null,null,null,null,null,""]
[null,null,null,null,null,"","","",null,"",null,null,"",null,null,null,null,null,null,null,null,""]
[null,null,null,null,null,"","","",null,"",null,null,"",null,null,null,null,null,null,null,null,""]
[null,null,null,null,null,"","","",null,"",null,null,"",null,null,null,null,null,null,null,null,""]
[null,null,null,null,null,"","","",null,"",null,null,"",null,null,null,null,null,null,null,null,""]
[null,null,null,null,null,"","","",null,"",null,null,"",null,null,null,null,null,null,null,null,""]
[null,null,null,null,null,"","","",null,"",null,null,"",null,null,null,null,null,null,null,null,""]
[null,null,null,null,null,"","","",null,"",null,null,"",null,null,null,null,null,null,null,null,""]
[null,null,null,null,null,"","","",null,"",null,null,"",null,null,null,null,null,null,null,null,""]
[null,null,null,null,null,"","","",null,"",null,null,"",null,null,null,null,null,null,null,null,""]
[null,null,null,null,null,"","","",null,"",null,null,"",null,null,null,null,null,null,null,null,""]
[null,null,null,null,null,"","","",null,"",null,null,"",null,null,null,null,null,null,null,null,""]
[null,null,null,null,null,"","","",null,"",null,null,"",null,null,null,null,null,null,null,null,""]
[null,null,null,null,null,"","","",null,"",null,null,"",null,null,null,null,null,null,null,null,""]
[null,null,null,null,null,"","","",null,"",null,null,"",null,null,null,null,null,null,null,null,""]
[null,null,null,null,null,"","","",null,"",null,null,"",null,null,null,null,null,null,null,null,""]
[null,null,null,null,null,"","",{"$f":"IF(AND(LEN(A461)>0,LEN(B461)>0),(C461+D461+E461)*F461+G461,\"\")","v":""},null,"",null,null,"",null,null,null,null,null,null,null,null,""]
[null,null,null,null,null,"",{"$f":"IF(AND(LEN(A462)>0,LEN(B462)>0),0,\"\")","v":""},"",null,{"$f":"IF(AND(LEN(A462)>0,LEN(B462)>0),I462,\"\")","v":""},null,null,{"$f":"IF(AND(LEN(A462)>0,LEN(B462)>0),SUM(J462:L462),\"\")","v":""},null,null,null,null,null,null,null,null,{"$f":"IF(AND(LEN(A462)>0,LEN(B462)>0),H462-M462+N462+O462+P462+Q462+R462+S462-T462-U462,\"\")","v":""}]
[null,null,null,null,null,{"$f":"IF(AND(LEN(A463)>0,LEN(B463)>0),0.95^10,\"\")","v":""},"","",null,"",null,null,"",null,null,null,null,null,null,null,null,""]
[null,null,null,null,null,"","","",null,"",null,null,"",null,null,null,null,null,null,null,null,""]
[null,null,null,null,null,"","","",null,"",null,null,"",null,null,null,null,null,null,null,null,""]
[null,null,null,null,null,"","","",null,"",null,null,"",null,null,null,null,null,null,null,null,""]
[null,null,null,null,null,"","","",null,"",null,null,"",null,null,null,null,null,null,null,null,""]
[null,null,null,null,null,"","","",null,"",null,null,"",null,null,null,null,null,null,null,null,""]
[null,null,null,null,null,"","","",null,"",null,null,"",null,null,null,null,null,null,null,null,""]
[null,null,null,null,null,"","","",null,"",null,null,"",null,null,null,null,null,null,null,null,""]
[null,null,null,null,null,"","","",null,"",null,null,"",null,null,null,null,null,null,null,null,""]
[null,null,null,null,null,"","","",null,"",null,null,"",null,null,null,null,null,null,null,null,""]
[null,null,null,null,null,"","","",null,"",null,null,"",null,null,null,null,null,null,null,null,""]
[null,null,null,null,null,"","","",null,"",null,null,"",null,null,null,null,null,null,null,null,""]
[null,null,null,null,null,"","","",null,"",null,null,"",null,null,null,null,null,null,null,null,""]
[null,null,null,null,null,"","","",null,"",null,null,"",null,null,null,null,null,null,null,null,""]
[null,null,null,null,null,"","","",null,"",null,null,"",null,null,null,null,null,null,null,null,""]
[null,null,null,null,null,"","","",null,"",null,null,"",null,null,null,null,null,null,null,null,""]
[null,null,null,null,null,"","","",null,"",null,null,"",null,null,null,null,null,null,null,null,""]
[null,null,null,null,null,"","","",null,"",null,null,"",null,null,null,null,null,null,null,null,""]
[null,null,null,null,null,"","","",null,"",null,null,"",null,null,null,null,null,null,null,null,""]
[null,null,null,null,null,"","","",null,"",null,null,"",null,null,null,null,null,null,null,null,""]
[null,null,null,null,null,"","","",null,"",null,null,"",null,null,null,null,null,null,null,null,""]
[null,null,null,null,null,"","","",null,"",null,null,"",null,null,null,null,null,null,null,null,""]
[null,null,null,null,null,"","","",null,"",null,null,"",null,null,null,null,null,null,null,null,""]
[null,null,null,null,null,"","","",null,"",null,null,"",null,null,null,null,null,null,null,null,""]
[null,null,null,null,null,"","","",null,"",null,null,"",null,null,null,null,null,null,null,null,""]
[null,null,null,null,null,"","","",null,"",null,null,"",null,null,null,null,null,null,null,null,""]
[null,null,null,null,null,"","","",null,"",null,null,"",null,null,null,null,null,null,null,null,""]
[null,null,null,null,null,"","","",null,"",null,null,"",null,null,null,null,null,null,null,null,""]
[null,null,null,null,null,"","","",null,"",null,null,"",null,null,null,null,null,null,null,null,""]
[null,null,null,null,null,"","","",null,"",null,null,"",null,null,null,null,null,null,null,null,""]
[null,null,null,null,null,"","","",null,"",null,null,"",null,null,null,null,null,null,null,null,""]
[null,null,null,null,null,"","","",null,"",null,null,"",null,null,null,null,null,null,null,null,""]
[null,null,null,null,null,"","","",null,"",null,null,"",null,null,null,null,null,null,null,null,""]
[null,null,null,null,null,"","","",null,"",null,null,"",null,null,null,null,null,null,null,null,""]
[null,null,null,null,null,"","","",null,"",null,null,"",null,null,null,null,null,null,null,null,""]
[null,null,null,null,null,"","","",null,"",null,null,"",null,null,null,null,null,null,null,null,""]
[null,null,null,null,null,"","","",null,"",null,null,"",null,null,null,null,null,null,null,null,""]
[null,null,null,null,null,"","","",null,"",null,null,"",null,null,null,null,null,null,null,null,""]
[null,null,null,null,null,"","","",null,"",null,null,"",null,null,null,null,null,null,null,null,""]
[null,null,null,null,null,"","","",null,"",null,null,"",null,null,null,null,null,null,null,null,""]
[null,null,null,null,null,"","","",null,"",null,null,"",null,null,null,null,null,null,null,null,""]
[null,null,null,null,null,"","","",null,"",null,null,"",null,null,null,null,null,null,null,null,""]
[null,null,null,null,null,"","","",null,"",null,null,"",null,null,null,null,null,null,null,null,""]
[null,null,null,null,null,"","","",null,"",null,null,"",null,null,null,null,null,null,null,null,""]
[null,null,null,null,null,"","","",null,"",null,null,"",null,null,null,null,null,null,null,null,""]
[null,null,null,null,null,"","","",null,"",null,null,"",null,null,null,null,null,null,null,null,""]
[null,null,null,null,null,"","","",null,"",null,null,"",null,null,null,null,null,null,null,null,""]
[null,null,null,null,null,"","","",null,"",null,null,"",null,null,null,null,null,null,null,null,""]
[null,null,null,null,null,"","","",null,"",null,null,"",null,null,null,null,null,null,null,null,""]
[null,null,null,null,null,"","","",null,"",null,null,"",null,null,null,null,null,null,null,null,""]
[null,null,null,null,null,"","","",null,"",null,null,"",null,null,null,null,null,null,null,null,""]
[null,null,null,null,null,"","","",null,"",null,null,"",null,null,null,null,null,null,null,null,""]
[null,null,null,null,null,"","","",null,"",null,null,"",null,null,null,null,null,null,null,null,""]
[null,null,null,null,null,"","","",null,"",null,null,"",null,null,null,null,null,null,null,null,""]
[null,null,null,null,null,"","","",null,"",null,null,"",null,null,null,null,null,null,null,null,""]
[null,null,null,null,null,"","","",null,"",null,null,"",null,null,null,null,null,null,null,null,""]
[null,null,null,null,null,"","","",null,"",null,null,"",null,null,null,null,null,null,null,null,""]
[null,null,null,null,null,"","","",null,"",null,null,"",null,null,null,null,null,null,null,null,""]
[null,null,null,null,null,"","","",null,"",null,null,"",null,null,null,null,null,null,null,null,""]
[null,null,null,null,null,"","","",null,"",null,null,"",null,null,null,null,null,null,null,null,""]
[null,null,null,null,null,"","","",null,"",null,null,"",null,null,null,null,null,null,null,null,""]
[null,null,null,null,null,"","","",null,"",null,null,"",null,null,null,null,null,null,null,null,""]
[null,null,null,null,null,"","",{"$f":"IF(AND(LEN(A525)>0,LEN(B525)>0),(C525+D525+E525)*F525+G525,\"\")","v":""},null,"",null,null,"",null,null,null,null,null,null,null,null,""]
[null,null,null,null,null,"",{"$f":"IF(AND(LEN(A526)>0,LEN(B526)>0),0,\"\")","v":""},"",null,{"$f":"IF(AND(LEN(A526)>0,LEN(B526)>0),I526,\"\")","v":""},null,null,{"$f":"IF(AND(LEN(A526)>0,LEN(B526)>0),SUM(J526:L526),\"\")","v":""},null,null,null,null,null,null,null,null,{"$f":"IF(AND(LEN(A526)>0,LEN(B526)>0),H526-M526+N526+O526+P526+Q526+R526+S526-T526-U526,\"\")","v":""}]
[null,null,null,null,null,{"$f":"IF(AND(LEN(A527)>0,LEN(B527)>0),0.95^10,\"\")","v":""},"","",null,"",null,null,"",null,null,null,null,null,null,null,null,""]
[null,null,null,null,null,"","","",null,"",null,null,"",null,null,null,null,null,null,null,null,""]
[null,null,null,null,null,"","","",null,"",null,null,"",null,null,null,null,null,null,null,null,""]
[null,null,null,null,null,"","","",null,"",null,null,"",null,null,null,null,null,null,null,null,""]
[null,null,null,null,null,"","","",null,"",null,null,"",null,null,null,null,null,null,null,null,""]
[null,null,null,null,null,"","","",null,"",null,null,"",null,null,null,null,null,null,null,null,""]
[null,null,null,null,null,"","","",null,"",null,null,"",null,null,null,null,null,null,null,null,""]
[null,null,null,null,null,"","","",null,"",null,null,"",null,null,null,null,null,null,null,null,""]
[null,null,null,null,null,"","","",null,"",null,null,"",null,null,null,null,null,null,null,null,""]
[null,null,null,null,null,"","","",null,"",null,null,"",null,null,null,null,null,null,null,null,""]
[null,null,null,null,null,"","","",null,"",null,null,"",null,null,null,null,null,null,null,null,""]
[null,null,null,null,null,"","","",null,"",null,null,"",null,null,null,null,null,null,null,null,""]
[null,null,null,null,null,"","","",null,"",null,null,"",null,null,null,null,null,null,null,null,""]
[null,null,null,null,null,"","","",null,"",null,null,"",null,null,null,null,null,null,null,null,""]
[null,null,null,null,null,"","","",null,"",null,null,"",null,null,null,null,null,null,null,null,""]
[null,null,null,null,null,"","","",null,"",null,null,"",null,null,null,null,null,null,null,null,""]
[null,null,null,null,null,"","","",null,"",null,null,"",null,null,null,null,null,null,null,null,""]
[null,null,null,null,null,"","","",null,"",null,null,"",null,null,null,null,null,null,null,null,""]
[null,null,null,null,null,"","","",null,"",null,null,"",null,null,null,null,null,null,null,null,""]
[null,null,null,null,null,"","","",null,"",null,null,"",null,null,null,null,null,null,null,null,""]
[null,null,null,null,null,"","","",null,"",null,null,"",null,null,null,null,null,null,null,null,""]
[null,null,null,null,null,"","","",null,"",null,null,"",null,null,null,null,null,null,null,null,""]
[null,null,null,null,null,"","","",null,"",null,null,"",null,null,null,null,null,null,null,null,""]
[null,null,null,null,null,"","","",null,"",null,null,"",null,null,null,null,null,null,null,null,""]
[null,null,null,null,null,"","","",null,"",null,null,"",null,null,null,null,null,null,null,null,""]
[null,null,null,null,null,"","","",null,"",null,null,"",null,null,null,null,null,null,null,null,""]
[null,null,null,null,null,"","","",null,"",null,null,"",null,null,null,null,null,null,null,null,""]
[null,null,null,null,null,"","","",null,"",null,null,"",null,null,null,null,null,null,null,null,""]
[null,null,null,null,null,"","","",null,"",null,null,"",null,null,null,null,null,null,null,null,""]
[null,null,null,null,null,"","","",null,"",null,null,"",null,null,null,null,null,null,null,null,""]
[null,null,null,null,null,"","","",null,"",null,null,"",null,null,null,null,null,null,null,null,""]
[null,null,null,null,null,"","","",null,"",null,null,"",null,null,null,null,null,null,null,null,""]
[null,null,null,null,null,"","","",null,"",null,null,"",null,null,null,null,null,null,null,null,""]
[null,null,null,null,null,"","","",null,"",null,null,"",null,null,null,null,null,null,null,null,""]
[null,null,null,null,null,"","","",null,"",null,null,"",null,null,null,null,null,null,null,null,""]
[null,null,null,null,null,"","","",null,"",null,null,"",null,null,null,null,null,null,null,null,""]
[null,null,null,null,null,"","","",null,"",null,null,"",null,null,null,null,null,null,null,null,""]
[null,null,null,null,null,"","","",null,"",null,null,"",null,null,null,null,null,null,null,null,""]
[null,null,null,null,null,"","","",null,"",null,null,"",null,null,null,null,null,null,null,null,""]
[null,null,null,null,null,"","","",null,"",null,null,"",null,null,null,null,null,null,null,null,""]
[null,null,null,null,null,"","","",null,"",null,null,"",null,null,null,null,null,null,null,null,""]
[null,null,null,null,null,"","","",null,"",null,null,"",null,null,null,null,null,null,null,null,""]
[null,null,null,null,null,"","","",null,"",null,null,"",null,null,null,null,null,null,null,null,""]
[null,null,null,null,null,"","","",null,"",null,null,"",null,null,null,null,null,null,null,null,""]
[null,null,null,null,null,"","","",null,"",null,null,"",null,null,null,null,null,null,null,null,""]
[null,null,null,null,null,"","","",null,"",null,null,"",null,null,null,null,null,null,null,null,""]
[null,null,null,null,null,"","","",null,"",null,null,"",null,null,null,null,null,null,null,null,""]
[null,null,null,null,null,"","","",null,"",null,null,"",null,null,null,null,null,null,null,null,""]
[null,null,null,null,null,"","","",null,"",null,null,"",null,null,null,null,null,null,null,null,""]
[null,null,null,null,null,"","","",null,"",null,null,"",null,null,null,null,null,null,null,null,""]
[null,null,null,null,null,"","","",null,"",null,null,"",null,null,null,null,null,null,null,null,""]
[null,null,null,null,null,"","","",null,"",null,null,"",null,null,null,null,null,null,null,null,""]
[null,null,null,null,null,"","","",null,"",null,null,"",null,null,null,null,null,null,null,null,""]
[null,null,null,null,null,"","","",null,"",null,null,"",null,null,null,null,null,null,null,null,""]
[null,null,null,null,null,"","","",null,"",null,null,"",null,null,null,null,null,null,null,null,""]
[null,null,null,null,null,"","","",null,"",null,null,"",null,null,null,null,null,null,null,null,""]
[null,null,null,null,null,"","","",null,"",null,null,"",null,null,null,null,null,null,null,null,""]
[null,null,null,null,null,"","","",null,"",null,null,"",null,null,null,null,null,null,null,null,""]
[null,null,null,null,null,"","","",null,"",null,null,"",null,null,null,null,null,null,null,null,""]
[null,null,null,null,null,"","","",null,"",null,null,"",null,null,null,null,null,null,null,null,""]
[null,null,null,null,null,"","","",null,"",null,null,"",null,null,null,null,null,null,null,null,""]
[null,null,null,null,null,"","","",null,"",null,null,"",null,null,null,null,null,null,null,null,""]
[null,null,null,null,null,"","",{"$f":"IF(AND(LEN(A589)>0,LEN(B589)>0),(C589+D589+E589)*F589+G589,\"\")","v":""},null,"",null,null,"",null,null,null,null,null,null,null,null,""]
[null,null,null,null,null,"",{"$f":"IF(AND(LEN(A590)>0,LEN(B590)>0),0,\"\")","v":""},"",null,{"$f":"IF(AND(LEN(A590)>0,LEN(B590)>0),I590,\"\")","v":""},null,null,{"$f":"IF(AND(LEN(A590)>0,LEN(B590)>0),SUM(J590:L590),\"\")","v":""},null,null,null,null,null,null,null,null,{"$f":"IF(AND(LEN(A590)>0,LEN(B590)>0),H590-M590+N590+O590+P590+Q590+R590+S590-T590-U590,\"\")","v":""}]
[null,null,null,null,null,{"$f":"IF(AND(LEN(A591)>0,LEN(B591)>0),0.95^10,\"\")","v":""},"","",null,"",null,null,"",null,null,null,null,null,null,null,null,""]
[null,null,null,null,null,"","","",null,"",null,null,"",null,null,null,null,null,null,null,null,""]
[null,null,null,null,null,"","","",null,"",null,null,"",null,null,null,null,null,null,null,null,""]
[null,null,null,null,null,"","","",null,"",null,null,"",null,null,null,null,null,null,null,null,""]
[null,null,null,null,null,"","","",null,"",null,null,"",null,null,null,null,null,null,null,null,""]
[null,null,null,null,null,"","","",null,"",null,null,"",null,null,null,null,null,null,null,null,""]
[null,null,null,null,null,"","","",null,"",null,null,"",null,null,null,null,null,null,null,null,""]
[null,null,null,null,null,"","","",null,"",null,null,"",null,null,null,null,null,null,null,null,""]
[null,null,null,null,null,"","","",null,"",null,null,"",null,null,null,null,null,null,null,null,""]
[null,null,null,null,null,"","","",null,"",null,null,"",null,null,null,null,null,null,null,null,""]
[null,null,null,null,null,"","","",null,"",null,null,"",null,null,null,null,null,null,null,null,""]
[null,null,null,null,null,"","","",null,"",null,null,"",null,null,null,null,null,null,null,null,""]
[null,null,null,null,null,"","","",null,"",null,null,"",null,null,null,null,null,null,null,null,""]
[null,null,null,null,null,"","","",null,"",null,null,"",null,null,null,null,null,null,null,null,""]
[null,null,null,null,null,"","","",null,"",null,null,"",null,null,null,null,null,null,null,null,""]
[null,null,null,null,null,"","","",null,"",null,null,"",null,null,null,null,null,null,null,null,""]
[null,null,null,null,null,"","","",null,"",null,null,"",null,null,null,null,null,null,null,null,""]
[null,null,null,null,null,"","","",null,"",null,null,"",null,null,null,null,null,null,null,null,""]
[null,null,null,null,null,"","","",null,"",null,null,"",null,null,null,null,null,null,null,null,""]
[null,null,null,null,null,"","","",null,"",null,null,"",null,null,null,null,null,null,null,null,""]
[null,null,null,null,null,"","","",null,"",null,null,"",null,null,null,null,null,null,null,null,""]
[null,null,null,null,null,"","","",null,"",null,null,"",null,null,null,null,null,null,null,null,""]
[null,null,null,null,null,"","","",null,"",null,null,"",null,null,null,null,null,null,null,null,""]
[null,null,null,null,null,"","","",null,"",null,null,"",null,null,null,null,null,null,null,null,""]
[null,null,null,null,null,"","","",null,"",null,null,"",null,null,null,null,null,null,null,null,""]
[null,null,null,null,null,"","","",null,"",null,null,"",null,null,null,null,null,null,null,null,""]
[null,null,null,null,null,"","","",null,"",null,null,"",null,null,null,null,null,null,null,null,""]
[null,null,null,null,null,"","","",null,"",null,null,"",null,null,null,null,null,null,null,null,""]
[null,null,null,null,null,"","","",null,"",null,null,"",null,null,null,null,null,null,null,null,""]
[null,null,null,null,null,"","","",null,"",null,null,"",null,null,null,null,null,null,null,null,""]
[null,null,null,null,null,"","","",null,"",null,null,"",null,null,null,null,null,null,null,null,""]
[null,null,null,null,null,"","","",null,"",null,null,"",null,null,null,null,null,null,null,null,""]
[null,null,null,null,null,"","","",null,"",null,null,"",null,null,null,null,null,null,null,null,""]
[null,null,null,null,null,"","","",null,"",null,null,"",null,null,null,null,null,null,null,null,""]
[null,null,null,null,null,"","","",null,"",null,null,"",null,null,null,null,null,null,null,null,""]
[null,null,null,null,null,"","","",null,"",null,null,"",null,null,null,null,null,null,null,null,""]
[null,null,null,null,null,"","","",null,"",null,null,"",null,null,null,null,null,null,null,null,""]
[null,null,null,null,null,"","","",null,"",null,null,"",null,null,null,null,null,null,null,null,""]
[null,null,null,null,null,"","","",null,"",null,null,"",null,null,null,null,null,null,null,null,""]
[null,null,null,null,null,"","","",null,"",null,null,"",null,null,null,null,null,null,null,null,""]
[null,null,null,null,null,"","","",null,"",null,null,"",null,null,null,null,null,null,null,null,""]
[null,null,null,null,null,"","","",null,"",null,null,"",null,null,null,null,null,null,null,null,""]
[null,null,null,null,null,"","","",null,"",null,null,"",null,null,null,null,null,null,null,null,""]
[null,null,null,null,null,"","","",null,"",null,null,"",null,null,null,null,null,null,null,null,""]
[null,null,null,null,null,"","","",null,"",null,null,"",null,null,null,null,null,null,null,null,""]
[null,null,null,null,null,"","","",null,"",null,null,"",null,null,null,null,null,null,null,null,""]
[null,null,null,null,null,"","","",null,"",null,null,"",null,null,null,null,null,null,null,null,""]
[null,null,null,null,null,"","","",null,"",null,null,"",null,null,null,null,null,null,null,null,""]
[null,null,null,null,null,"","","",null,"",null,null,"",null,null,null,null,null,null,null,null,""]
[null,null,null,null,null,"","","",null,"",null,null,"",null,null,null,null,null,null,null,null,""]
[null,null,null,null,null,"","","",null,"",null,null,"",null,null,null,null,null,null,null,null,""]
[null,null,null,null,null,"","","",null,"",null,null,"",null,null,null,null,null,null,null,null,""]
[null,null,null,null,null,"","","",null,"",null,null,"",null,null,null,null,null,null,null,null,""]
[null,null,null,null,null,"","","",null,"",null,null,"",null,null,null,null,null,null,null,null,""]
[null,null,null,null,null,"","","",null,"",null,null,"",null,null,null,null,null,null,null,null,""]
[null,null,null,null,null,"","","",null,"",null,null,"",null,null,null,null,null,null,null,null,""]
[null,null,null,null,null,"","","",null,"",null,null,"",null,null,null,null,null,null,null,null,""]
[null,null,null,null,null,"","","",null,"",null,null,"",null,null,null,null,null,null,null,null,""]
[null,null,null,null,null,"","","",null,"",null,null,"",null,null,null,null,null,null,null,null,""]
[null,null,null,null,null,"","","",null,"",null,null,"",null,null,null,null,null,null,null,null,""]
[null,null,null,null,null,"","","",null,"",null,null,"",null,null,null,null,null,null,null,null,""]
[null,null,null,null,null,"","","",null,"",null,null,"",null,null,null,null,null,null,null,null,""]
[null,null,null,null,null,"","",{"$f":"IF(AND(LEN(A653)>0,LEN(B653)>0),(C653+D653+E653)*F653+G653,\"\")","v":""},null,"",null,null,"",null,null,null,null,null,null,null,null,""]
[null,null,null,null,null,"",{"$f":"IF(AND(LEN(A654)>0,LEN(B654)>0),0,\"\")","v":""},"",null,{"$f":"IF(AND(LEN(A654)>0,LEN(B654)>0),I654,\"\")","v":""},null,null,{"$f":"IF(AND(LEN(A654)>0,LEN(B654)>0),SUM(J654:L654),\"\")","v":""},null,null,null,null,null,null,null,null,{"$f":"IF(AND(LEN(A654)>0,LEN(B654)>0),H654-M654+N654+O654+P654+Q654+R654+S654-T654-U654,\"\")","v":""}]
[null,null,null,null,null,{"$f":"IF(AND(LEN(A655)>0,LEN(B655)>0),0.95^10,\"\")","v":""},"","",null,"",null,null,"",null,null,null,null,null,null,null,null,""]
[null,null,null,null,null,"","","",null,"",null,null,"",null,null,null,null,null,null,null,null,""]
[null,null,null,null,null,"","","",null,"",null,null,"",null,null,null,null,null,null,null,null,""]
[null,null,null,null,null,"","","",null,"",null,null,"",null,null,null,null,null,null,null,null,""]
[null,null,null,null,null,"","","",null,"",null,null,"",null,null,null,null,null,null,null,null,""]
[null,null,null,null,null,"","","",null,"",null,null,"",null,null,null,null,null,null,null,null,""]
[null,null,null,null,null,"","","",null,"",null,null,"",null,null,null,null,null,null,null,null,""]
[null,null,null,null,null,"","","",null,"",null,null,"",null,null,null,null,null,null,null,null,""]
[null,null,null,null,null,"","","",null,"",null,null,"",null,null,null,null,null,null,null,null,""]
[null,null,null,null,null,"","","",null,"",null,null,"",null,null,null,null,null,null,null,null,""]
[null,null,null,null,null,"","","",null,"",null,null,"",null,null,null,null,null,null,null,null,""]
[null,null,null,null,null,"","","",null,"",null,null,"",null,null,null,null,null,null,null,null,""]
[null,null,null,null,null,"","","",null,"",null,null,"",null,null,null,null,null,null,null,null,""]
[null,null,null,null,null,"","","",null,"",null,null,"",null,null,null,null,null,null,null,null,""]
[null,null,null,null,null,"","","",null,"",null,null,"",null,null,null,null,null,null,null,null,""]
[null,null,null,null,null,"","","",null,"",null,null,"",null,null,null,null,null,null,null,null,""]
[null,null,null,null,null,"","","",null,"",null,null,"",null,null,null,null,null,null,null,null,""]
[null,null,null,null,null,"","","",null,"",null,null,"",null,null,null,null,null,null,null,null,""]
[null,null,null,null,null,"","","",null,"",null,null,"",null,null,null,null,null,null,null,null,""]
[null,null,null,null,null,"","","",null,"",null,null,"",null,null,null,null,null,null,null,null,""]
[null,null,null,null,null,"","","",null,"",null,null,"",null,null,null,null,null,null,null,null,""]
[null,null,null,null,null,"","","",null,"",null,null,"",null,null,null,null,null,null,null,null,""]
[null,null,null,null,null,"","","",null,"",null,null,"",null,null,null,null,null,null,null,null,""]
[null,null,null,null,null,"","","",null,"",null,null,"",null,null,null,null,null,null,null,null,""]
[null,null,null,null,null,"","","",null,"",null,null,"",null,null,null,null,null,null,null,null,""]
[null,null,null,null,null,"","","",null,"",null,null,"",null,null,null,null,null,null,null,null,""]
[null,null,null,null,null,"","","",null,"",null,null,"",null,null,null,null,null,null,null,null,""]
[null,null,null,null,null,"","","",null,"",null,null,"",null,null,null,null,null,null,null,null,""]
[null,null,null,null,null,"","","",null,"",null,null,"",null,null,null,null,null,null,null,null,""]
[null,null,null,null,null,"","","",null,"",null,null,"",null,null,null,null,null,null,null,null,""]
[null,null,null,null,null,"","","",null,"",null,null,"",null,null,null,null,null,null,null,null,""]
[null,null,null,null,null,"","","",null,"",null,null,"",null,null,null,null,null,null,null,null,""]
[null,null,null,null,null,"","","",null,"",null,null,"",null,null,null,null,null,null,null,null,""]
[null,null,null,null,null,"","","",null,"",null,null,"",null,null,null,null,null,null,null,null,""]
[null,null,null,null,null,"","","",null,"",null,null,"",null,null,null,null,null,null,null,null,""]
[null,null,null,null,null,"","","",null,"",null,null,"",null,null,null,null,null,null,null,null,""]
[null,null,null,null,null,"","","",null,"",null,null,"",null,null,null,null,null,null,null,null,""]
[null,null,null,null,null,"","","",null,"",null,null,"",null,null,null,null,null,null,null,null,""]
[null,null,null,null,null,"","","",null,"",null,null,"",null,null,null,null,null,null,null,null,""]
[null,null,null,null,null,"","","",null,"",null,null,"",null,null,null,null,null,null,null,null,""]
[null,null,null,null,null,"","","",null,"",null,null,"",null,null,null,null,null,null,null,null,""]
[null,null,null,null,null,"","","",null,"",null,null,"",null,null,null,null,null,null,null,null,""]
[null,null,null,null,null,"","","",null,"",null,null,"",null,null,null,null,null,null,null,null,""]
[null,null,null,null,null,"","","",null,"",null,null,"",null,null,null,null,null,null,null,null,""]
[null,null,null,null,null,"","","",null,"",null,null,"",null,null,null,null,null,null,null,null,""]
[null,null,null,null,null,"","","",null,"",null,null,"",null,null,null,null,null,null,null,null,""]
[null,null,null,null,null,"","","",null,"",null,null,"",null,null,null,null,null,null,null,null,""]
[null,null,null,null,null,"","","",null,"",null,null,"",null,null,null,null,null,null,null,null,""]
[null,null,null,null,null,"","","",null,"",null,null,"",null,null,null,null,null,null,null,null,""]
[null,null,null,null,null,"","","",null,"",null,null,"",null,null,null,null,null,null,null,null,""]
[null,null,null,null,null,"","","",null,"",null,null,"",null,null,null,null,null,null,null,null,""]
[null,null,null,null,null,"","","",null,"",null,null,"",null,null,null,null,null,null,null,null,""]
[null,null,null,null,null,"","","",null,"",null,null,"",null,null,null,null,null,null,null,null,""]
[null,null,null,null,null,"","","",null,"",null,null,"",null,null,null,null,null,null,null,null,""]
[null,null,null,null,null,"","","",null,"",null,null,"",null,null,null,null,null,null,null,null,""]
[null,null,null,null,null,"","","",null,"",null,null,"",null,null,null,null,null,null,null,null,""]
[null,null,null,null,null,"","","",null,"",null,null,"",null,null,null,null,null,null,null,null,""]
[null,null,null,null,null,"","","",null,"",null,null,"",null,null,null,null,null,null,null,null,""]
[null,null,null,null,null,"","","",null,"",null,null,"",null,null,null,null,null,null,null,null,""]
[null,null,null,null,null,"","","",null,"",null,null,"",null,null,null,null,null,null,null,null,""]
[null,null,null,null,null,"","","",null,"",null,null,"",null,null,null,null,null,null,null,null,""]
[null,null,null,null,null,"","","",null,"",null,null,"",null,null,null,null,null,null,null,null,""]
[null,null,null,null,null,"","",{"$f":"IF(AND(LEN(A717)>0,LEN(B717)>0),(C717+D717+E717)*F717+G717,\"\")","v":""},null,"",null,null,"",null,null,null,null,null,null,null,null,""]
[null,null,null,null,null,"",{"$f":"IF(AND(LEN(A718)>0,LEN(B718)>0),0,\"\")","v":""},"",null,{"$f":"IF(AND(LEN(A718)>0,LEN(B718)>0),I718,\"\")","v":""},null,null,{"$f":"IF(AND(LEN(A718)>0,LEN(B718)>0),SUM(J718:L718),\"\")","v":""},null,null,null,null,null,null,null,null,{"$f":"IF(AND(LEN(A718)>0,LEN(B718)>0),H718-M718+N718+O718+P718+Q718+R718+S718-T718-U718,\"\")","v":""}]
[null,null,null,null,null,{"$f":"IF(AND(LEN(A719)>0,LEN(B719)>0),0.95^10,\"\")","v":""},"","",null,"",null,null,"",null,null,null,null,null,null,null,null,""]
[null,null,null,null,null,"","","",null,"",null,null,"",null,null,null,null,null,null,null,null,""]
[null,null,null,null,null,"","","",null,"",null,null,"",null,null,null,null,null,null,null,null,""]
[null,null,null,null,null,"","","",null,"",null,null,"",null,null,null,null,null,null,null,null,""]
[null,null,null,null,null,"","","",null,"",null,null,"",null,null,null,null,null,null,null,null,""]
[null,null,null,null,null,"","","",null,"",null,null,"",null,null,null,null,null,null,null,null,""]
[null,null,null,null,null,"","","",null,"",null,null,"",null,null,null,null,null,null,null,null,""]
[null,null,null,null,null,"","","",null,"",null,null,"",null,null,null,null,null,null,null,null,""]
[null,null,null,null,null,"","","",null,"",null,null,"",null,null,null,null,null,null,null,null,""]
[null,null,null,null,null,"","","",null,"",null,null,"",null,null,null,null,null,null,null,null,""]
[null,null,null,null,null,"","","",null,"",null,null,"",null,null,null,null,null,null,null,null,""]
[null,null,null,null,null,"","","",null,"",null,null,"",null,null,null,null,null,null,null,null,""]
[null,null,null,null,null,"","","",null,"",null,null,"",null,null,null,null,null,null,null,null,""]
[null,null,null,null,null,"","","",null,"",null,null,"",null,null,null,null,null,null,null,null,""]
[null,null,null,null,null,"","","",null,"",null,null,"",null,null,null,null,null,null,null,null,""]
[null,null,null,null,null,"","","",null,"",null,null,"",null,null,null,null,null,null,null,null,""]
[null,null,null,null,null,"","","",null,"",null,null,"",null,null,null,null,null,null,null,null,""]
[null,null,null,null,null,"","","",null,"",null,null,"",null,null,null,null,null,null,null,null,""]
[null,null,null,null,null,"","","",null,"",null,null,"",null,null,null,null,null,null,null,null,""]
[null,null,null,null,null,"","","",null,"",null,null,"",null,null,null,null,null,null,null,null,""]
[null,null,null,null,null,"","","",null,"",null,null,"",null,null,null,null,null,null,null,null,""]
[null,null,null,null,null,"","","",null,"",null,null,"",null,null,null,null,null,null,null,null,""]
[null,null,null,null,null,"","","",null,"",null,null,"",null,null,null,null,null,null,null,null,""]
[null,null,null,null,null,"","","",null,"",null,null,"",null,null,null,null,null,null,null,null,""]
[null,null,null,null,null,"","","",null,"",null,null,"",null,null,null,null,null,null,null,null,""]
[null,null,null,null,null,"","","",null,"",null,null,"",null,null,null,null,null,null,null,null,""]
[null,null,null,null,null,"","","",null,"",null,null,"",null,null,null,null,null,null,null,null,""]
[null,null,null,null,null,"","","",null,"",null,null,"",null,null,null,null,null,null,null,null,""]
[null,null,null,null,null,"","","",null,"",null,null,"",null,null,null,null,null,null,null,null,""]
[null,null,null,null,null,"","","",null,"",null,null,"",null,null,null,null,null,null,null,null,""]
[null,null,null,null,null,"","","",null,"",null,null,"",null,null,null,null,null,null,null,null,""]
[null,null,null,null,null,"","","",null,"",null,null,"",null,null,null,null,null,null,null,null,""]
[null,null,null,null,null,"","","",null,"",null,null,"",null,null,null,null,null,null,null,null,""]
[null,null,null,null,null,"","","",null,"",null,null,"",null,null,null,null,null,null,null,null,""]
[null,null,null,null,null,"","","",null,"",null,null,"",null,null,null,null,null,null,null,null,""]
[null,null,null,null,null,"","","",null,"",null,null,"",null,null,null,null,null,null,null,null,""]
[null,null,null,null,null,"","","",null,"",null,null,"",null,null,null,null,null,null,null,null,""]
[null,null,null,null,null,"","","",null,"",null,null,"",null,null,null,null,null,null,null,null,""]
[null,null,null,null,null,"","","",null,"",null,null,"",null,null,null,null,null,null,null,null,""]
[null,null,null,null,null,"","","",null,"",null,null,"",null,null,null,null,null,null,null,null,""]
[null,null,null,null,null,"","","",null,"",null,null,"",null,null,null,null,null,null,null,null,""]
[null,null,null,null,null,"","","",null,"",null,null,"",null,null,null,null,null,null,null,null,""]
[null,null,null,null,null,"","","",null,"",null,null,"",null,null,null,null,null,null,null,null,""]
[null,null,null,null,null,"","","",null,"",null,null,"",null,null,null,null,null,null,null,null,""]
[null,null,null,null,null,"","","",null,"",null,null,"",null,null,null,null,null,null,null,null,""]
[null,null,null,null,null,"","","",null,"",null,null,"",null,null,null,null,null,null,null,null,""]
[null,null,null,null,null,"","","",null,"",null,null,"",null,null,null,null,null,null,null,null,""]
[null,null,null,null,null,"","","",null,"",null,null,"",null,null,null,null,null,null,null,null,""]
[null,null,null,null,null,"","","",null,"",null,null,"",null,null,null,null,null,null,null,null,""]
[null,null,null,null,null,"","","",null,"",null,null,"",null,null,null,null,null,null,null,null,""]
[null,null,null,null,null,"","","",null,"",null,null,"",null,null,null,null,null,null,null,null,""]
[null,null,null,null,null,"","","",null,"",null,null,"",null,null,null,null,null,null,null,null,""]
[null,null,null,null,null,"","","",null,"",null,null,"",null,null,null,null,null,null,null,null,""]
[null,null,null,null,null,"","","",null,"",null,null,"",null,null,null,null,null,null,null,null,""]
[null,null,null,null,null,"","","",null,"",null,null,"",null,null,null,null,null,null,null,null,""]
[null,null,null,null,null,"","","",null,"",null,null,"",null,null,null,null,null,null,null,null,""]
[null,null,null,null,null,"","","",null,"",null,null,"",null,null,null,null,null,null,null,null,""]
[null,null,null,null,null,"","","",null,"",null,null,"",null,null,null,null,null,null,null,null,""]
[null,null,null,null,null,"","","",null,"",null,null,"",null,null,null,null,null,null,null,null,""]
[null,null,null,null,null,"","","",null,"",null,null,"",null,null,null,null,null,null,null,null,""]
[null,null,null,null,null,"","","",null,"",null,null,"",null,null,null,null,null,null,null,null,""]
[null,null,null,null,null,"","","",null,"",null,null,"",null,null,null,null,null,null,null,null,""]
[null,null,null,null,null,"","",{"$f":"IF(AND(LEN(A781)>0,LEN(B781)>0),(C781+D781+E781)*F781+G781,\"\")","v":""},null,"",null,null,"",null,null,null,null,null,null,null,null,""]
[null,null,null,null,null,"",{"$f":"IF(AND(LEN(A782)>0,LEN(B782)>0),0,\"\")","v":""},"",null,{"$f":"IF(AND(LEN(A782)>0,LEN(B782)>0),I782,\"\")","v":""},null,null,{"$f":"IF(AND(LEN(A782)>0,LEN(B782)>0),SUM(J782:L782),\"\")","v":""},null,null,null,null,null,null,null,null,{"$f":"IF(AND(LEN(A782)>0,LEN(B782)>0),H782-M782+N782+O782+P782+Q782+R782+S782-T782-U782,\"\")","v":""}]
[null,null,null,null,null,{"$f":"IF(AND(LEN(A783)>0,LEN(B783)>0),0.95^10,\"\")","v":""},"","",null,"",null,null,"",null,null,null,null,null,null,null,null,""]
[null,null,null,null,null,"","","",null,"",null,null,"",null,null,null,null,null,null,null,null,""]
[null,null,null,null,null,"","","",null,"",null,null,"",null,null,null,null,null,null,null,null,""]
[null,null,null,null,null,"","","",null,"",null,null,"",null,null,null,null,null,null,null,null,""]
[null,null,null,null,null,"","","",null,"",null,null,"",null,null,null,null,null,null,null,null,""]
[null,null,null,null,null,"","","",null,"",null,null,"",null,null,null,null,null,null,null,null,""]
[null,null,null,null,null,"","","",null,"",null,null,"",null,null,null,null,null,null,null,null,""]
[null,null,null,null,null,"","","",null,"",null,null,"",null,null,null,null,null,null,null,null,""]
[null,null,null,null,null,"","","",null,"",null,null,"",null,null,null,null,null,null,null,null,""]
[null,null,null,null,null,"","","",null,"",null,null,"",null,null,null,null,null,null,null,null,""]
[null,null,null,null,null,"","","",null,"",null,null,"",null,null,null,null,null,null,null,null,""]
[null,null,null,null,null,"","","",null,"",null,null,"",null,null,null,null,null,null,null,null,""]
[null,null,null,null,null,"","","",null,"",null,null,"",null,null,null,null,null,null,null,null,""]
[null,null,null,null,null,"","","",null,"",null,null,"",null,null,null,null,null,null,null,null,""]
[null,null,null,null,null,"","","",null,"",null,null,"",null,null,null,null,null,null,null,null,""]
[null,null,null,null,null,"","","",null,"",null,null,"",null,null,null,null,null,null,null,null,""]
[null,null,null,null,null,"","","",null,"",null,null,"",null,null,null,null,null,null,null,null,""]
[null,null,null,null,null,"","","",null,"",null,null,"",null,null,null,null,null,null,null,null,""]
[null,null,null,null,null,"","","",null,"",null,null,"",null,null,null,null,null,null,null,null,""]
[null,null,null,null,null,"","","",null,"",null,null,"",null,null,null,null,null,null,null,null,""]
[null,null,null,null,null,"","","",null,"",null,null,"",null,null,null,null,null,null,null,null,""]
[null,null,null,null,null,"","","",null,"",null,null,"",null,null,null,null,null,null,null,null,""]
[null,null,null,null,null,"","","",null,"",null,null,"",null,null,null,null,null,null,null,null,""]
[null,null,null,null,null,"","","",null,"",null,null,"",null,null,null,null,null,null,null,null,""]
[null,null,null,null,null,"","","",null,"",null,null,"",null,null,null,null,null,null,null,null,""]
[null,null,null,null,null,"","","",null,"",null,null,"",null,null,null,null,null,null,null,null,""]
[null,null,null,null,null,"","","",null,"",null,null,"",null,null,null,null,null,null,null,null,""]
[null,null,null,null,null,"","","",null,"",null,null,"",null,null,null,null,null,null,null,null,""]
[null,null,null,null,null,"","","",null,"",null,null,"",null,null,null,null,null,null,null,null,""]
[null,null,null,null,null,"","","",null,"",null,null,"",null,null,null,null,null,null,null,null,""]
[null,null,null,null,null,"","","",null,"",null,null,"",null,null,null,null,null,null,null,null,""]
[null,null,null,null,null,"","","",null,"",null,null,"",null,null,null,null,null,null,null,null,""]
[null,null,null,null,null,"","","",null,"",null,null,"",null,null,null,null,null,null,null,null,""]
[null,null,null,null,null,"","","",null,"",null,null,"",null,null,null,null,null,null,null,null,""]
[null,null,null,null,null,"","","",null,"",null,null,"",null,null,null,null,null,null,null,null,""]
[null,null,null,null,null,"","","",null,"",null,null,"",null,null,null,null,null,null,null,null,""]
[null,null,null,null,null,"","","",null,"",null,null,"",null,null,null,null,null,null,null,null,""]
[null,null,null,null,null,"","","",null,"",null,null,"",null,null,null,null,null,null,null,null,""]
[null,null,null,null,null,"","","",null,"",null,null,"",null,null,null,null,null,null,null,null,""]
[null,null,null,null,null,"","","",null,"",null,null,"",null,null,null,null,null,null,null,null,""]
[null,null,null,null,null,"","","",null,"",null,null,"",null,null,null,null,null,null,null,null,""]
[null,null,null,null,null,"","","",null,"",null,null,"",null,null,null,null,null,null,null,null,""]
[null,null,null,null,null,"","","",null,"",null,null,"",null,null,null,null,null,null,null,null,""]
[null,null,null,null,null,"","","",null,"",null,null,"",null,null,null,null,null,null,null,null,""]
[null,null,null,null,null,"","","",null,"",null,null,"",null,null,null,null,null,null,null,null,""]
[null,null,null,null,null,"","","",null,"",null,null,"",null,null,null,null,null,null,null,null,""]
[null,null,null,null,null,"","","",null,"",null,null,"",null,null,null,null,null,null,null,null,""]
[null,null,null,null,null,"","","",null,"",null,null,"",null,null,null,null,null,null,null,null,""]
[null,null,null,null,null,"","","",null,"",null,null,"",null,null,null,null,null,null,null,null,""]
[null,null,null,null,null,"","","",null,"",null,null,"",null,null,null,null,null,null,null,null,""]
[null,null,null,null,null,"","","",null,"",null,null,"",null,null,null,null,null,null,null,null,""]
[null,null,null,null,null,"","","",null,"",null,null,"",null,null,null,null,null,null,null,null,""]
[null,null,null,null,null,"","","",null,"",null,null,"",null,null,null,null,null,null,null,null,""]
[null,null,null,null,null,"","","",null,"",null,null,"",null,null,null,null,null,null,null,null,""]
[null,null,null,null,null,"","","",null,"",null,null,"",null,null,null,null,null,null,null,null,""]
[null,null,null,null,null,"","","",null,"",null,null,"",null,null,null,null,null,null,null,null,""]
[null,null,null,null,null,"","","",null,"",null,null,"",null,null,null,null,null,null,null,null,""]
[null,null,null,null,null,"","","",null,"",null,null,"",null,null,null,null,null,null,null,null,""]
[null,null,null,null,null,"","","",null,"",null,null,"",null,null,null,null,null,null,null,null,""]
[null,null,null,null,null,"","","",null,"",null,null,"",null,null,null,null,null,null,null,null,""]
[null,null,null,null,null,"","","",null,"",null,null,"",null,null,null,null,null,null,null,null,""]
[null,null,null,null,null,"","","",null,"",null,null,"",null,null,null,null,null,null,null,null,""]
[null,null,null,null,null,"","",{"$f":"IF(AND(LEN(A845)>0,LEN(B845)>0),(C845+D845+E845)*F845+G845,\"\")","v":""},null,"",null,null,"",null,null,null,null,null,null,null,null,""]
[null,null,null,null,null,"",{"$f":"IF(AND(LEN(A846)>0,LEN(B846)>0),0,\"\")","v":""},"",null,{"$f":"IF(AND(LEN(A846)>0,LEN(B846)>0),I846,\"\")","v":""},null,null,{"$f":"IF(AND(LEN(A846)>0,LEN(B846)>0),SUM(J846:L846),\"\")","v":""},null,null,null,null,null,null,null,null,{"$f":"IF(AND(LEN(A846)>0,LEN(B846)>0),H846-M846+N846+O846+P846+Q846+R846+S846-T846-U846,\"\")","v":""}]
[null,null,null,null,null,{"$f":"IF(AND(LEN(A847)>0,LEN(B847)>0),0.95^10,\"\")","v":""},"","",null,"",null,null,"",null,null,null,null,null,null,null,null,""]
[null,null,null,null,null,"","","",null,"",null,null,"",null,null,null,null,null,null,null,null,""]
[null,null,null,null,null,"","","",null,"",null,null,"",null,null,null,null,null,null,null,null,""]
[null,null,null,null,null,"","","",null,"",null,null,"",null,null,null,null,null,null,null,null,""]
[null,null,null,null,null,"","","",null,"",null,null,"",null,null,null,null,null,null,null,null,""]
[null,null,null,null,null,"","","",null,"",null,null,"",null,null,null,null,null,null,null,null,""]
[null,null,null,null,null,"","","",null,"",null,null,"",null,null,null,null,null,null,null,null,""]
[null,null,null,null,null,"","","",null,"",null,null,"",null,null,null,null,null,null,null,null,""]
[null,null,null,null,null,"","","",null,"",null,null,"",null,null,null,null,null,null,null,null,""]
[null,null,null,null,null,"","","",null,"",null,null,"",null,null,null,null,null,null,null,null,""]
[null,null,null,null,null,"","","",null,"",null,null,"",null,null,null,null,null,null,null,null,""]
[null,null,null,null,null,"","","",null,"",null,null,"",null,null,null,null,null,null,null,null,""]
[null,null,null,null,null,"","","",null,"",null,null,"",null,null,null,null,null,null,null,null,""]
[null,null,null,null,null,"","","",null,"",null,null,"",null,null,null,null,null,null,null,null,""]
[null,null,null,null,null,"","","",null,"",null,null,"",null,null,null,null,null,null,null,null,""]
[null,null,null,null,null,"","","",null,"",null,null,"",null,null,null,null,null,null,null,null,""]
[null,null,null,null,null,"","","",null,"",null,null,"",null,null,null,null,null,null,null,null,""]
[null,null,null,null,null,"","","",null,"",null,null,"",null,null,null,null,null,null,null,null,""]
[null,null,null,null,null,"","","",null,"",null,null,"",null,null,null,null,null,null,null,null,""]
[null,null,null,null,null,"","","",null,"",null,null,"",null,null,null,null,null,null,null,null,""]
[null,null,null,null,null,"","","",null,"",null,null,"",null,null,null,null,null,null,null,null,""]
[null,null,null,null,null,"","","",null,"",null,null,"",null,null,null,null,null,null,null,null,""]
[null,null,null,null,null,"","","",null,"",null,null,"",null,null,null,null,null,null,null,null,""]
[null,null,null,null,null,"","","",null,"",null,null,"",null,null,null,null,null,null,null,null,""]
[null,null,null,null,null,"","","",null,"",null,null,"",null,null,null,null,null,null,null,null,""]
[null,null,null,null,null,"","","",null,"",null,null,"",null,null,null,null,null,null,null,null,""]
[null,null,null,null,null,"","","",null,"",null,null,"",null,null,null,null,null,null,null,null,""]
[null,null,null,null,null,"","","",null,"",null,null,"",null,null,null,null,null,null,null,null,""]
[null,null,null,null,null,"","","",null,"",null,null,"",null,null,null,null,null,null,null,null,""]
[null,null,null,null,null,"","","",null,"",null,null,"",null,null,null,null,null,null,null,null,""]
[null,null,null,null,null,"","","",null,"",null,null,"",null,null,null,null,null,null,null,null,""]
[null,null,null,null,null,"","","",null,"",null,null,"",null,null,null,null,null,null,null,null,""]
[null,null,null,null,null,"","","",null,"",null,null,"",null,null,null,null,null,null,null,null,""]
[null,null,null,null,null,"","","",null,"",null,null,"",null,null,null,null,null,null,null,null,""]
[null,null,null,null,null,"","","",null,"",null,null,"",null,null,null,null,null,null,null,null,""]
[null,null,null,null,null,"","","",null,"",null,null,"",null,null,null,null,null,null,null,null,""]
[null,null,null,null,null,"","","",null,"",null,null,"",null,null,null,null,null,null,null,null,""]
[null,null,null,null,null,"","","",null,"",null,null,"",null,null,null,null,null,null,null,null,""]
[null,null,null,null,null,"","","",null,"",null,null,"",null,null,null,null,null,null,null,null,""]
[null,null,null,null,null,"","","",null,"",null,null,"",null,null,null,null,null,null,null,null,""]
[null,null,null,null,null,"","","",null,"",null,null,"",null,null,null,null,null,null,null,null,""]
[null,null,null,null,null,"","","",null,"",null,null,"",null,null,null,null,null,null,null,null,""]
[null,null,null,null,null,"","","",null,"",null,null,"",null,null,null,null,null,null,null,null,""]
[null,null,null,null,null,"","","",null,"",null,null,"",null,null,null,null,null,null,null,null,""]
[null,null,null,null,null,"","","",null,"",null,null,"",null,null,null,null,null,null,null,null,""]
[null,null,null,null,null,"","","",null,"",null,null,"",null,null,null,null,null,null,null,null,""]
[null,null,null,null,null,"","","",null,"",null,null,"",null,null,null,null,null,null,null,null,""]
[null,null,null,null,null,"","","",null,"",null,null,"",null,null,null,null,null,null,null,null,""]
[null,null,null,null,null,"","","",null,"",null,null,"",null,null,null,null,null,null,null,null,""]
[null,null,null,null,null,"","","",null,"",null,null,"",null,null,null,null,null,null,null,null,""]
[null,null,null,null,null,"","","",null,"",null,null,"",null,null,null,null,null,null,null,null,""]
[null,null,null,null,null,"","","",null,"",null,null,"",null,null,null,null,null,null,null,null,""]
[null,null,null,null,null,"","","",null,"",null,null,"",null,null,null,null,null,null,null,null,""]
[null,null,null,null,null,"","","",null,"",null,null,"",null,null,null,null,null,null,null,null,""]
[null,null,null,null,null,"","","",null,"",null,null,"",null,null,null,null,null,null,null,null,""]
[null,null,null,null,null,"","","",null,"",null,null,"",null,null,null,null,null,null,null,null,""]
[null,null,null,null,null,"","","",null,"",null,null,"",null,null,null,null,null,null,null,null,""]
[null,null,null,null,null,"","","",null,"",null,null,"",null,null,null,null,null,null,null,null,""]
[null,null,null,null,null,"","","",null,"",null,null,"",null,null,null,null,null,null,null,null,""]
[null,null,null,null,null,"","","",null,"",null,null,"",null,null,null,null,null,null,null,null,""]
[null,null,null,null,null,"","","",null,"",null,null,"",null,null,null,null,null,null,null,null,""]
[null,null,null,null,null,"","","",null,"",null,null,"",null,null,null,null,null,null,null,null,""]
[null,null,null,null,null,"","",{"$f":"IF(AND(LEN(A909)>0,LEN(B909)>0),(C909+D909+E909)*F909+G909,\"\")","v":""},null,"",null,null,"",null,null,null,null,null,null,null,null,""]
[null,null,null,null,null,"",{"$f":"IF(AND(LEN(A910)>0,LEN(B910)>0),0,\"\")","v":""},"",null,{"$f":"IF(AND(LEN(A910)>0,LEN(B910)>0),I910,\"\")","v":""},null,null,{"$f":"IF(AND(LEN(A910)>0,LEN(B910)>0),SUM(J910:L910),\"\")","v":""},null,null,null,null,null,null,null,null,{"$f":"IF(AND(LEN(A910)>0,LEN(B910)>0),H910-M910+N910+O910+P910+Q910+R910+S910-T910-U910,\"\")","v":""}]
[null,null,null,null,null,{"$f":"IF(AND(LEN(A911)>0,LEN(B911)>0),0.95^10,\"\")","v":""},"","",null,"",null,null,"",null,null,null,null,null,null,null,null,""]
[null,null,null,null,null,"","","",null,"",null,null,"",null,null,null,null,null,null,null,null,""]
[null,null,null,null,null,"","","",null,"",null,null,"",null,null,null,null,null,null,null,null,""]
[null,null,null,null,null,"","","",null,"",null,null,"",null,null,null,null,null,null,null,null,""]
[null,null,null,null,null,"","","",null,"",null,null,"",null,null,null,null,null,null,null,null,""]
[null,null,null,null,null,"","","",null,"",null,null,"",null,null,null,null,null,null,null,null,""]
[null,null,null,null,null,"","","",null,"",null,null,"",null,null,null,null,null,null,null,null,""]
[null,null,null,null,null,"","","",null,"",null,null,"",null,null,null,null,null,null,null,null,""]
[null,null,null,null,null,"","","",null,"",null,null,"",null,null,null,null,null,null,null,null,""]
[null,null,null,null,null,"","","",null,"",null,null,"",null,null,null,null,null,null,null,null,""]
[null,null,null,null,null,"","","",null,"",null,null,"",null,null,null,null,null,null,null,null,""]
[null,null,null,null,null,"","","",null,"",null,null,"",null,null,null,null,null,null,null,null,""]
[null,null,null,null,null,"","","",null,"",null,null,"",null,null,null,null,null,null,null,null,""]
[null,null,null,null,null,"","","",null,"",null,null,"",null,null,null,null,null,null,null,null,""]
[null,null,null,null,null,"","","",null,"",null,null,"",null,null,null,null,null,null,null,null,""]
[null,null,null,null,null,"","","",null,"",null,null,"",null,null,null,null,null,null,null,null,""]
[null,null,null,null,null,"","","",null,"",null,null,"",null,null,null,null,null,null,null,null,""]
[null,null,null,null,null,"","","",null,"",null,null,"",null,null,null,null,null,null,null,null,""]
[null,null,null,null,null,"","","",null,"",null,null,"",null,null,null,null,null,null,null,null,""]
[null,null,null,null,null,"","","",null,"",null,null,"",null,null,null,null,null,null,null,null,""]
[null,null,null,null,null,"","","",null,"",null,null,"",null,null,null,null,null,null,null,null,""]
[null,null,null,null,null,"","","",null,"",null,null,"",null,null,null,null,null,null,null,null,""]
[null,null,null,null,null,"","","",null,"",null,null,"",null,null,null,null,null,null,null,null,""]
[null,null,null,null,null,"","","",null,"",null,null,"",null,null,null,null,null,null,null,null,""]
[null,null,null,null,null,"","","",null,"",null,null,"",null,null,null,null,null,null,null,null,""]
[null,null,null,null,null,"","","",null,"",null,null,"",null,null,null,null,null,null,null,null,""]
[null,null,null,null,null,"","","",null,"",null,null,"",null,null,null,null,null,null,null,null,""]
[null,null,null,null,null,"","","",null,"",null,null,"",null,null,null,null,null,null,null,null,""]
[null,null,null,null,null,"","","",null,"",null,null,"",null,null,null,null,null,null,null,null,""]
[null,null,null,null,null,"","","",null,"",null,null,"",null,null,null,null,null,null,null,null,""]
[null,null,null,null,null,"","","",null,"",null,null,"",null,null,null,null,null,null,null,null,""]
[null,null,null,null,null,"","","",null,"",null,null,"",null,null,null,null,null,null,null,null,""]
[null,null,null,null,null,"","","",null,"",null,null,"",null,null,null,null,null,null,null,null,""]
[null,null,null,null,null,"","","",null,"",null,null,"",null,null,null,null,null,null,null,null,""]
[null,null,null,null,null,"","","",null,"",null,null,"",null,null,null,null,null,null,null,null,""]
[null,null,null,null,null,"","","",null,"",null,null,"",null,null,null,null,null,null,null,null,""]
[null,null,null,null,null,"","","",null,"",null,null,"",null,null,null,null,null,null,null,null,""]
[null,null,null,null,null,"","","",null,"",null,null,"",null,null,null,null,null,null,null,null,""]
[null,null,null,null,null,"","","",null,"",null,null,"",null,null,null,null,null,null,null,null,""]
[null,null,null,null,null,"","","",null,"",null,null,"",null,null,null,null,null,null,null,null,""]
[null,null,null,null,null,"","","",null,"",null,null,"",null,null,null,null,null,null,null,null,""]
[null,null,null,null,null,"","","",null,"",null,null,"",null,null,null,null,null,null,null,null,""]
[null,null,null,null,null,"","","",null,"",null,null,"",null,null,null,null,null,null,null,null,""]
[null,null,null,null,null,"","","",null,"",null,null,"",null,null,null,null,null,null,null,null,""]
[null,null,null,null,null,"","","",null,"",null,null,"",null,null,null,null,null,null,null,null,""]
[null,null,null,null,null,"","","",null,"",null,null,"",null,null,null,null,null,null,null,null,""]
[null,null,null,null,null,"","","",null,"",null,null,"",null,null,null,null,null,null,null,null,""]
[null,null,null,null,null,"","","",null,"",null,null,"",null,null,null,null,null,null,null,null,""]
[null,null,null,null,null,"","","",null,"",null,null,"",null,null,null,null,null,null,null,null,""]
[null,null,null,null,null,"","","",null,"",null,null,"",null,null,null,null,null,null,null,null,""]
[null,null,null,null,null,"","","",null,"",null,null,"",null,null,null,null,null,null,null,null,""]
[null,null,null,null,null,"","","",null,"",null,null,"",null,null,null,null,null,null,null,null,""]
[null,null,null,null,null,"","","",null,"",null,null,"",null,null,null,null,null,null,null,null,""]
[null,null,null,null,null,"","","",null,"",null,null,"",null,null,null,null,null,null,null,null,""]
[null,null,null,null,null,"","","",null,"",null,null,"",null,null,null,null,null,null,null,null,""]
[null,null,null,null,null,"","","",null,"",null,null,"",null,null,null,null,null,null,null,null,""]
[null,null,null,null,null,"","","",null,"",null,null,"",null,null,null,null,null,null,null,null,""]
[null,null,null,null,null,"","","",null,"",null,null,"",null,null,null,null,null,null,null,null,""]
[null,null,null,null,null,"","","",null,"",null,null,"",null,null,null,null,null,null,null,null,""]
[null,null,null,null,null,"","","",null,"",null,null,"",null,null,null,null,null,null,null,null,""]
[null,null,null,null,null,"","","",null,"",null,null,"",null,null,null,null,null,null,null,null,""]
[null,null,null,null,null,"","","",null,"",null,null,"",null,null,null,null,null,null,null,null,""]
[null,null,null,null,null,"","",{"$f":"IF(AND(LEN(A973)>0,LEN(B973)>0),(C973+D973+E973)*F973+G973,\"\")","v":""},null,"",null,null,"",null,null,null,null,null,null,null,null,""]
[null,null,null,null,null,"",{"$f":"IF(AND(LEN(A974)>0,LEN(B974)>0),0,\"\")","v":""},"",null,{"$f":"IF(AND(LEN(A974)>0,LEN(B974)>0),I974,\"\")","v":""},null,null,{"$f":"IF(AND(LEN(A974)>0,LEN(B974)>0),SUM(J974:L974),\"\")","v":""},null,null,null,null,null,null,null,null,{"$f":"IF(AND(LEN(A974)>0,LEN(B974)>0),H974-M974+N974+O974+P974+Q974+R974+S974-T974-U974,\"\")","v":""}]
[null,null,null,null,null,{"$f":"IF(AND(LEN(A975)>0,LEN(B975)>0),0.95^10,\"\")","v":""},"","",null,"",null,null,"",null,null,null,null,null,null,null,null,""]
[null,null,null,null,null,"","","",null,"",null,null,"",null,null,null,null,null,null,null,null,""]
[null,null,null,null,null,"","","",null,"",null,null,"",null,null,null,null,null,null,null,null,""]
[null,null,null,null,null,"","","",null,"",null,null,"",null,null,null,null,null,null,null,null,""]
[null,null,null,null,null,"","","",null,"",null,null,"",null,null,null,null,null,null,null,null,""]
[null,null,null,null,null,"","","",null,"",null,null,"",null,null,null,null,null,null,null,null,""]
[null,null,null,null,null,"","","",null,"",null,null,"",null,null,null,null,null,null,null,null,""]
[null,null,null,null,null,"","","",null,"",null,null,"",null,null,null,null,null,null,null,null,""]
[null,null,null,null,null,"","","",null,"",null,null,"",null,null,null,null,null,null,null,null,""]
[null,null,null,null,null,"","","",null,"",null,null,"",null,null,null,null,null,null,null,null,""]
[null,null,null,null,null,"","","",null,"",null,null,"",null,null,null,null,null,null,null,null,""]
[null,null,null,null,null,"","","",null,"",null,null,"",null,null,null,null,null,null,null,null,""]
[null,null,null,null,null,"","","",null,"",null,null,"",null,null,null,null,null,null,null,null,""]
[null,null,null,null,null,"","","",null,"",null,null,"",null,null,null,null,null,null,null,null,""]
[null,null,null,null,null,"","","",null,"",null,null,"",null,null,null,null,null,null,null,null,""]
[null,null,null,null,null,"","","",null,"",null,null,"",null,null,null,null,null,null,null,null,""]
[null,null,null,null,null,"","","",null,"",null,null,"",null,null,null,null,null,null,null,null,""]
[null,null,null,null,null,"","","",null,"",null,null,"",null,null,null,null,null,null,null,null,""]
[null,null,null,null,null,"","","",null,"",null,null,"",null,null,null,null,null,null,null,null,""]
[null,null,null,null,null,"","","",null,"",null,null,"",null,null,null,null,null,null,null,null,""]
[null,null,null,null,null,"","","",null,"",null,null,"",null,null,null,null,null,null,null,null,""]
[null,null,null,null,null,"","","",null,"",null,null,"",null,null,null,null,null,null,null,null,""]
[null,null,null,null,null,"","","",null,"",null,null,"",null,null,null,null,null,null,null,null,""]
[null,null,null,null,null,"","","",null,"",null,null,"",null,null,null,null,null,null,null,null,""]
[null,null,null,null,null,"","","",null,"",null,null,"",null,null,null,null,null,null,null,null,""]
[null,null,null,null,null,"","","",null,"",null,null,"",null,null,null,null,null,null,null,null,""]
[null,null,null,null,null,"","","",null,"",null,null,"",null,null,null,null,null,null,null,null,""]
[null,null,null,null,null,"","","",null,"",null,null,"",null,null,null,null,null,null,null,null,""]
[null,null,null,null,null,"","","",null,"",null,null,"",null,null,null,null,null,null,null,null,""]
[null,null,null,null,null,"","","",null,"",null,null,"",null,null,null,null,null,null,null,null,""]
[null,null,null,null,null,"","","",null,"",null,null,"",null,null,null,null,null,null,null,null,""]
[null,null,null,null,null,"","","",null,"",null,null,"",null,null,null,null,null,null,null,null,""]
[null,null,null,null,null,"","","",null,"",null,null,"",null,null,null,null,null,null,null,null,""]
[null,null,null,null,null,"","","",null,"",null,null,"",null,null,null,null,null,null,null,null,""]
[null,null,null,null,null,"","","",null,"",null,null,"",null,null,null,null,null,null,null,null,""]
[null,null,null,null,null,"","","",null,"",null,null,"",null,null,null,null,null,null,null,null,""]
[null,null,null,null,null,"","","",null,"",null,null,"",null,null,null,null,null,null,null,null,""]
[null,null,null,null,null,"","","",null,"",null,null,"",null,null,null,null,null,null,null,null,""]
[null,null,null,null,null,"","","",null,"",null,null,"",null,null,null,null,null,null,null,null,""]
[null,null,null,null,null,"","","",null,"",null,null,"",null,null,null,null,null,null,null,null,""]
[null,null,null,null,null,"","","",null,"",null,null,"",null,null,null,null,null,null,null,null,""]
[null,null,null,null,null,"","","",null,"",null,null,"",null,null,null,null,null,null,null,null,""]
[null,null,null,null,null,"","","",null,"",null,null,"",null,null,null,null,null,null,null,null,""]
[null,null,null,null,null,"","","",null,"",null,null,"",null,null,null,null,null,null,null,null,""]
[null,null,null,null,null,"","","",null,"",null,null,"",null,null,null,null,null,null,null,null,""]
[null,null,null,null,null,"","","",null,"",null,null,"",null,null,null,null,null,null,null,null,""]
[null,null,null,null,null,"","","",null,"",null,null,"",null,null,null,null,null,null,null,null,""]
[null,null,null,null,null,"","","",null,"",null,null,"",null,null,null,null,null,null,null,null,""]
[null,null,null,null,null,"","","",null,"",null,null,"",null,null,null,null,null,null,null,null,""]
[null,null,null,null,null,"","","",null,"",null,null,"",null,null,null,null,null,null,null,null,""]
[null,null,null,null,null,"","","",null,"",null,null,"",null,null,null,null,null,null,null,null,""]
[null,null,null,null,null,"","","",null,"",null,null,"",null,null,null,null,null,null,null,null,""]
[null,null,null,null,null,"","","",null,"",null,null,"",null,null,null,null,null,null,null,null,""]
[null,null,null,null,null,"","","",null,"",null,null,"",null,null,null,null,null,null,null,null,""]
[null,null,null,null,null,"","","",null,"",null,null,"",null,null,null,null,null,null,null,null,""]
[null,null,null,null,null,"","","",null,"",null,null,"",null,null,null,null,null,null,null,null,""]
[null,null,null,null,null,"","","",null,"",null,null,"",null,null,null,null,null,null,null,null,""]
[null,null,null,null,null,"","","",null,"",null,null,"",null,null,null,null,null,null,null,null,""]
[null,null,null,null,null,"","","",null,"",null,null,"",null,null,null,null,null,null,null,null,""]
[null,null,null,null,null,"","","",null,"",null,null,"",null,null,null,null,null,null,null,null,""]
[null,null,null,null,null,"","","",null,"",null,null,"",null,null,null,null,null,null,null,null,""]
[null,null,null,null,null,"","","",null,"",null,null,"",null,null,null,null,null,null,null,null,""]
[null,null,null,null,null,"","",{"$f":"IF(AND(LEN(A1037)>0,LEN(B1037)>0),(C1037+D1037+E1037)*F1037+G1037,\"\")","v":""},null,"",null,null,"",null,null,null,null,null,null,null,null,""]
[null,null,null,null,null,"",{"$f":"IF(AND(LEN(A1038)>0,LEN(B1038)>0),0,\"\")","v":""},"",null,{"$f":"IF(AND(LEN(A1038)>0,LEN(B1038)>0),I1038,\"\")","v":""},null,null,{"$f":"IF(AND(LEN(A1038)>0,LEN(B1038)>0),SUM(J1038:L1038),\"\")","v":""},null,null,null,null,null,null,null,null,{"$f":"IF(AND(LEN(A1038)>0,LEN(B1038)>0),H1038-M1038+N1038+O1038+P1038+Q1038+R1038+S1038-T1038-U1038,\"\")","v":""}]
[null,null,null,null,null,{"$f":"IF(AND(LEN(A1039)>0,LEN(B1039)>0),0.95^10,\"\")","v":""},"","",null,"",null,null,"",null,null,null,null,null,null,null,null,""]
[null,null,null,null,null,"","","",null,"",null,null,"",null,null,null,null,null,null,null,null,""]
[null,null,null,null,null,"","","",null,"",null,null,"",null,null,null,null,null,null,null,null,""]
[null,null,null,null,null,"","","",null,"",null,null,"",null,null,null,null,null,null,null,null,""]
[null,null,null,null,null,"","","",null,"",null,null,"",null,null,null,null,null,null,null,null,""]
[null,null,null,null,null,"","","",null,"",null,null,"",null,null,null,null,null,null,null,null,""]
[null,null,null,null,null,"","","",null,"",null,null,"",null,null,null,null,null,null,null,null,""]
[null,null,null,null,null,"","","",null,"",null,null,"",null,null,null,null,null,null,null,null,""]
[null,null,null,null,null,"","","",null,"",null,null,"",null,null,null,null,null,null,null,null,""]
[null,null,null,null,null,"","","",null,"",null,null,"",null,null,null,null,null,null,null,null,""]
[null,null,null,null,null,"","","",null,"",null,null,"",null,null,null,null,null,null,null,null,""]
[null,null,null,null,null,"","","",null,"",null,null,"",null,null,null,null,null,null,null,null,""]
[null,null,null,null,null,"","","",null,"",null,null,"",null,null,null,null,null,null,null,null,""]
[null,null,null,null,null,"","","",null,"",null,null,"",null,null,null,null,null,null,null,null,""]
[null,null,null,null,null,"","","",null,"",null,null,"",null,null,null,null,null,null,null,null,""]
[null,null,null,null,null,"","","",null,"",null,null,"",null,null,null,null,null,null,null,null,""]
[null,null,null,null,null,"","","",null,"",null,null,"",null,null,null,null,null,null,null,null,""]
[null,null,null,null,null,"","","",null,"",null,null,"",null,null,null,null,null,null,null,null,""]
[null,null,null,null,null,"","","",null,"",null,null,"",null,null,null,null,null,null,null,null,""]
[null,null,null,null,null,"","","",null,"",null,null,"",null,null,null,null,null,null,null,null,""]
[null,null,null,null,null,"","","",null,"",null,null,"",null,null,null,null,null,null,null,null,""]
[null,null,null,null,null,"","","",null,"",null,null,"",null,null,null,null,null,null,null,null,""]
[null,null,null,null,null,"","","",null,"",null,null,"",null,null,null,null,null,null,null,null,""]
[null,null,null,null,null,"","","",null,"",null,null,"",null,null,null,null,null,null,null,null,""]
[null,null,null,null,null,"","","",null,"",null,null,"",null,null,null,null,null,null,null,null,""]
[null,null,null,null,null,"","","",null,"",null,null,"",null,null,null,null,null,null,null,null,""]
[null,null,null,null,null,"","","",null,"",null,null,"",null,null,null,null,null,null,null,null,""]
[null,null,null,null,null,"","","",null,"",null,null,"",null,null,null,null,null,null,null,null,""]
[null,null,null,null,null,"","","",null,"",null,null,"",null,null,null,null,null,null,null,null,""]
[null,null,null,null,null,"","","",null,"",null,null,"",null,null,null,null,null,null,null,null,""]
[null,null,null,null,null,"","","",null,"",null,null,"",null,null,null,null,null,null,null,null,""]
[null,null,null,null,null,"","","",null,"",null,null,"",null,null,null,null,null,null,null,null,""]
[null,null,null,null,null,"","","",null,"",null,null,"",null,null,null,null,null,null,null,null,""]
[null,null,null,null,null,"","","",null,"",null,null,"",null,null,null,null,null,null,null,null,""]
[null,null,null,null,null,"","","",null,"",null,null,"",null,null,null,null,null,null,null,null,""]
[null,null,null,null,null,"","","",null,"",null,null,"",null,null,null,null,null,null,null,null,""]
[null,null,null,null,null,"","","",null,"",null,null,"",null,null,null,null,null,null,null,null,""]
[null,null,null,null,null,"","","",null,"",null,null,"",null,null,null,null,null,null,null,null,""]
[null,null,null,null,null,"","","",null,"",null,null,"",null,null,null,null,null,null,null,null,""]
[null,null,null,null,null,"","","",null,"",null,null,"",null,null,null,null,null,null,null,null,""]
[null,null,null,null,null,"","","",null,"",null,null,"",null,null,null,null,null,null,null,null,""]
[null,null,null,null,null,"","","",null,"",null,null,"",null,null,null,null,null,null,null,null,""]
[null,null,null,null,null,"","","",null,"",null,null,"",null,null,null,null,null,null,null,null,""]
[null,null,null,null,null,"","","",null,"",null,null,"",null,null,null,null,null,null,null,null,""]
[null,null,null,null,null,"","","",null,"",null,null,"",null,null,null,null,null,null,null,null,""]
[null,null,null,null,null,"","","",null,"",null,null,"",null,null,null,null,null,null,null,null,""]
[null,null,null,null,null,"","","",null,"",null,null,"",null,null,null,null,null,null,null,null,""]
[null,null,null,null,null,"","","",null,"",null,null,"",null,null,null,null,null,null,null,null,""]
[null,null,null,null,null,"","","",null,"",null,null,"",null,null,null,null,null,null,null,null,""]
[null,null,null,null,null,"","","",null,"",null,null,"",null,null,null,null,null,null,null,null,""]
[null,null,null,null,null,"","","",null,"",null,null,"",null,null,null,null,null,null,null,null,""]
[null,null,null,null,null,"","","",null,"",null,null,"",null,null,null,null,null,null,null,null,""]
[null,null,null,null,null,"","","",null,"",null,null,"",null,null,null,null,null,null,null,null,""]
[null,null,null,null,null,"","","",null,"",null,null,"",null,null,null,null,null,null,null,null,""]
[null,null,null,null,null,"","","",null,"",null,null,"",null,null,null,null,null,null,null,null,""]
[null,null,null,null,null,"","","",null,"",null,null,"",null,null,null,null,null,null,null,null,""]
[null,null,null,null,null,"","","",null,"",null,null,"",null,null,null,null,null,null,null,null,""]
[null,null,null,null,null,"","","",null,"",null,null,"",null,null,null,null,null,null,null,null,""]
[null,null,null,null,null,"","","",null,"",null,null,"",null,null,null,null,null,null,null,null,""]
[null,null,null,null,null,"","","",null,"",null,null,"",null,null,null,null,null,null,null,null,""]
[null,null,null,null,null,"","","",null,"",null,null,"",null,null,null,null,null,null,null,null,""]
[null,null,null,null,null,"","","",null,"",null,null,"",null,null,null,null,null,null,null,null,""]
[null,null,null,null,null,"","",{"$f":"IF(AND(LEN(A1101)>0,LEN(B1101)>0),(C1101+D1101+E1101)*F1101+G1101,\"\")","v":""},null,"",null,null,"",null,null,null,null,null,null,null,null,""]
[null,null,null,null,null,"",{"$f":"IF(AND(LEN(A1102)>0,LEN(B1102)>0),0,\"\")","v":""},"",null,{"$f":"IF(AND(LEN(A1102)>0,LEN(B1102)>0),I1102,\"\")","v":""},null,null,{"$f":"IF(AND(LEN(A1102)>0,LEN(B1102)>0),SUM(J1102:L1102),\"\")","v":""},null,null,null,null,null,null,null,null,{"$f":"IF(AND(LEN(A1102)>0,LEN(B1102)>0),H1102-M1102+N1102+O1102+P1102+Q1102+R1102+S1102-T1102-U1102,\"\")","v":""}]
[null,null,null,null,null,{"$f":"IF(AND(LEN(A1103)>0,LEN(B1103)>0),0.95^10,\"\")","v":""},"","",null,"",null,null,"",null,null,null,null,null,null,null,null,""]
[null,null,null,null,null,"","","",null,"",null,null,"",null,null,null,null,null,null,null,null,""]
[null,null,null,null,null,"","","",null,"",null,null,"",null,null,null,null,null,null,null,null,""]
[null,null,null,null,null,"","","",null,"",null,null,"",null,null,null,null,null,null,null,null,""]
[null,null,null,null,null,"","","",null,"",null,null,"",null,null,null,null,null,null,null,null,""]
[null,null,null,null,null,"","","",null,"",null,null,"",null,null,null,null,null,null,null,null,""]
[null,null,null,null,null,"","","",null,"",null,null,"",null,null,null,null,null,null,null,null,""]
[null,null,null,null,null,"","","",null,"",null,null,"",null,null,null,null,null,null,null,null,""]
[null,null,null,null,null,"","","",null,"",null,null,"",null,null,null,null,null,null,null,null,""]
[null,null,null,null,null,"","","",null,"",null,null,"",null,null,null,null,null,null,null,null,""]
[null,null,null,null,null,"","","",null,"",null,null,"",null,null,null,null,null,null,null,null,""]
[null,null,null,null,null,"","","",null,"",null,null,"",null,null,null,null,null,null,null,null,""]
[null,null,null,null,null,"","","",null,"",null,null,"",null,null,null,null,null,null,null,null,""]
[null,null,null,null,null,"","","",null,"",null,null,"",null,null,null,null,null,null,null,null,""]
[null,null,null,null,null,"","","",null,"",null,null,"",null,null,null,null,null,null,null,null,""]
[null,null,null,null,null,"","","",null,"",null,null,"",null,null,null,null,null,null,null,null,""]
[null,null,null,null,null,"","","",null,"",null,null,"",null,null,null,null,null,null,null,null,""]
[null,null,null,null,null,"","","",null,"",null,null,"",null,null,null,null,null,null,null,null,""]
[null,null,null,null,null,"","","",null,"",null,null,"",null,null,null,null,null,null,null,null,""]
[null,null,null,null,null,"","","",null,"",null,null,"",null,null,null,null,null,null,null,null,""]
[null,null,null,null,null,"","","",null,"",null,null,"",null,null,null,null,null,null,null,null,""]
[null,null,null,null,null,"","","",null,"",null,null,"",null,null,null,null,null,null,null,null,""]
[null,null,null,null,null,"","","",null,"",null,null,"",null,null,null,null,null,null,null,null,""]
[null,null,null,null,null,"","","",null,"",null,null,"",null,null,null,null,null,null,null,null,""]
[null,null,null,null,null,"","","",null,"",null,null,"",null,null,null,null,null,null,null,null,""]
[null,null,null,null,null,"","","",null,"",null,null,"",null,null,null,null,null,null,null,null,""]
[null,null,null,null,null,"","","",null,"",null,null,"",null,null,null,null,null,null,null,null,""]
[null,null,null,null,null,"","","",null,"",null,null,"",null,null,null,null,null,null,null,null,""]
[null,null,null,null,null,"","","",null,"",null,null,"",null,null,null,null,null,null,null,null,""]
[null,null,null,null,null,"","","",null,"",null,null,"",null,null,null,null,null,null,null,null,""]
[null,null,null,null,null,"","","",null,"",null,null,"",null,null,null,null,null,null,null,null,""]
[null,null,null,null,null,"","","",null,"",null,null,"",null,null,null,null,null,null,null,null,""]
[null,null,null,null,null,"","","",null,"",null,null,"",null,null,null,null,null,null,null,null,""]
[null,null,null,null,null,"","","",null,"",null,null,"",null,null,null,null,null,null,null,null,""]
[null,null,null,null,null,"","","",null,"",null,null,"",null,null,null,null,null,null,null,null,""]
[null,null,null,null,null,"","","",null,"",null,null,"",null,null,null,null,null,null,null,null,""]
[null,null,null,null,null,"","","",null,"",null,null,"",null,null,null,null,null,null,null,null,""]
[null,null,null,null,null,"","","",null,"",null,null,"",null,null,null,null,null,null,null,null,""]
[null,null,null,null,null,"","","",null,"",null,null,"",null,null,null,null,null,null,null,null,""]
[null,null,null,null,null,"","","",null,"",null,null,"",null,null,null,null,null,null,null,null,""]
[null,null,null,null,null,"","","",null,"",null,null,"",null,null,null,null,null,null,null,null,""]
[null,null,null,null,null,"","","",null,"",null,null,"",null,null,null,null,null,null,null,null,""]
[null,null,null,null,null,"","","",null,"",null,null,"",null,null,null,null,null,null,null,null,""]
[null,null,null,null,null,"","","",null,"",null,null,"",null,null,null,null,null,null,null,null,""]
[null,null,null,null,null,"","","",null,"",null,null,"",null,null,null,null,null,null,null,null,""]
[null,null,null,null,null,"","","",null,"",null,null,"",null,null,null,null,null,null,null,null,""]
[null,null,null,null,null,"","","",null,"",null,null,"",null,null,null,null,null,null,null,null,""]
[null,null,null,null,null,"","","",null,"",null,null,"",null,null,null,null,null,null,null,null,""]
[null,null,null,null,null,"","","",null,"",null,null,"",null,null,null,null,null,null,null,null,""]
[null,null,null,null,null,"","","",null,"",null,null,"",null,null,null,null,null,null,null,null,""]
[null,null,null,null,null,"","","",null,"",null,null,"",null,null,null,null,null,null,null,null,""]
[null,null,null,null,null,"","","",null,"",null,null,"",null,null,null,null,null,null,null,null,""]
[null,null,null,null,null,"","","",null,"",null,null,"",null,null,null,null,null,null,null,null,""]
[null,null,null,null,null,"","","",null,"",null,null,"",null,null,null,null,null,null,null,null,""]
[null,null,null,null,null,"","","",null,"",null,null,"",null,null,null,null,null,null,null,null,""]
[null,null,null,null,null,"","","",null,"",null,null,"",null,null,null,null,null,null,null,null,""]
[null,null,null,null,null,"","","",null,"",null,null,"",null,null,null,null,null,null,null,null,""]
[null,null,null,null,null,"","","",null,"",null,null,"",null,null,null,null,null,null,null,null,""]
[null,null,null,null,null,"","","",null,"",null,null,"",null,null,null,null,null,null,null,null,""]
[null,null,null,null,null,"","","",null,"",null,null,"",null,null,null,null,null,null,null,null,""]
[null,null,null,null,null,"","","",null,"",null,null,"",null,null,null,null,null,null,null,null,""]
[null,null,null,null,null,"","","",null,"",null,null,"",null,null,null,null,null,null,null,null,""]
[null,null,null,null,null,"","",{"$f":"IF(AND(LEN(A1165)>0,LEN(B1165)>0),(C1165+D1165+E1165)*F1165+G1165,\"\")","v":""},null,"",null,null,"",null,null,null,null,null,null,null,null,""]
[null,null,null,null,null,"",{"$f":"IF(AND(LEN(A1166)>0,LEN(B1166)>0),0,\"\")","v":""},"",null,{"$f":"IF(AND(LEN(A1166)>0,LEN(B1166)>0),I1166,\"\")","v":""},null,null,{"$f":"IF(AND(LEN(A1166)>0,LEN(B1166)>0),SUM(J1166:L1166),\"\")","v":""},null,null,null,null,null,null,null,null,{"$f":"IF(AND(LEN(A1166)>0,LEN(B1166)>0),H1166-M1166+N1166+O1166+P1166+Q1166+R1166+S1166-T1166-U1166,\"\")","v":""}]
[null,null,null,null,null,{"$f":"IF(AND(LEN(A1167)>0,LEN(B1167)>0),0.95^10,\"\")","v":""},"","",null,"",null,null,"",null,null,null,null,null,null,null,null,""]
[null,null,null,null,null,"","","",null,"",null,null,"",null,null,null,null,null,null,null,null,""]
[null,null,null,null,null,"","","",null,"",null,null,"",null,null,null,null,null,null,null,null,""]
[null,null,null,null,null,"","","",null,"",null,null,"",null,null,null,null,null,null,null,null,""]
[null,null,null,null,null,"","","",null,"",null,null,"",null,null,null,null,null,null,null,null,""]
[null,null,null,null,null,"","","",null,"",null,null,"",null,null,null,null,null,null,null,null,""]
[null,null,null,null,null,"","","",null,"",null,null,"",null,null,null,null,null,null,null,null,""]
[null,null,null,null,null,"","","",null,"",null,null,"",null,null,null,null,null,null,null,null,""]
[null,null,null,null,null,"","","",null,"",null,null,"",null,null,null,null,null,null,null,null,""]
[null,null,null,null,null,"","","",null,"",null,null,"",null,null,null,null,null,null,null,null,""]
[null,null,null,null,null,"","","",null,"",null,null,"",null,null,null,null,null,null,null,null,""]
[null,null,null,null,null,"","","",null,"",null,null,"",null,null,null,null,null,null,null,null,""]
[null,null,null,null,null,"","","",null,"",null,null,"",null,null,null,null,null,null,null,null,""]
[null,null,null,null,null,"","","",null,"",null,null,"",null,null,null,null,null,null,null,null,""]
[null,null,null,null,null,"","","",null,"",null,null,"",null,null,null,null,null,null,null,null,""]
[null,null,null,null,null,"","","",null,"",null,null,"",null,null,null,null,null,null,null,null,""]
[null,null,null,null,null,"","","",null,"",null,null,"",null,null,null,null,null,null,null,null,""]
[null,null,null,null,null,"","","",null,"",null,null,"",null,null,null,null,null,null,null,null,""]
[null,null,null,null,null,"","","",null,"",null,null,"",null,null,null,null,null,null,null,null,""]
[null,null,null,null,null,"","","",null,"",null,null,"",null,null,null,null,null,null,null,null,""]
[null,null,null,null,null,"","","",null,"",null,null,"",null,null,null,null,null,null,null,null,""]
[null,null,null,null,null,"","","",null,"",null,null,"",null,null,null,null,null,null,null,null,""]
[null,null,null,null,null,"","","",null,"",null,null,"",null,null,null,null,null,null,null,null,""]
[null,null,null,null,null,"","","",null,"",null,null,"",null,null,null,null,null,null,null,null,""]
[null,null,null,null,null,"","","",null,"",null,null,"",null,null,null,null,null,null,null,null,""]
[null,null,null,null,null,"","","",null,"",null,null,"",null,null,null,null,null,null,null,null,""]
[null,null,null,null,null,"","","",null,"",null,null,"",null,null,null,null,null,null,null,null,""]
[null,null,null,null,null,"","","",null,"",null,null,"",null,null,null,null,null,null,null,null,""]
[null,null,null,null,null,"","","",null,"",null,null,"",null,null,null,null,null,null,null,null,""]
[null,null,null,null,null,"","","",null,"",null,null,"",null,null,null,null,null,null,null,null,""]
[null,null,null,null,null,"","","",null,"",null,null,"",null,null,null,null,null,null,null,null,""]
[null,null,null,null,null,"","","",null,"",null,null,"",null,null,null,null,null,null,null,null,""]
[null,null,null,null,null,"","","",null,"",null,null,"",null,null,null,null,null,null,null,null,""]
[null,null,null,null,null,"","","",null,"",null,null,"",null,null,null,null,null,null,null,null,""]
[null,null,null,null,null,"","","",null,"",null,null,"",null,null,null,null,null,null,null,null,""]
[null,null,null,null,null,"","","",null,"",null,null,"",null,null,null,null,null,null,null,null,""]
[null,null,null,null,null,"","","",null,"",null,null,"",null,null,null,null,null,null,null,null,""]
[null,null,null,null,null,"","","",null,"",null,null,"",null,null,null,null,null,null,null,null,""]
[null,null,null,null,null,"","","",null,"",null,null,"",null,null,null,null,null,null,null,null,""]
[null,null,null,null,null,"","","",null,"",null,null,"",null,null,null,null,null,null,null,null,""]
[null,null,null,null,null,"","","",null,"",null,null,"",null,null,null,null,null,null,null,null,""]
[null,null,null,null,null,"","","",null,"",null,null,"",null,null,null,null,null,null,null,null,""]
[null,null,null,null,null,"","","",null,"",null,null,"",null,null,null,null,null,null,null,null,""]
[null,null,null,null,null,"","","",null,"",null,null,"",null,null,null,null,null,null,null,null,""]
[null,null,null,null,null,"","","",null,"",null,null,"",null,null,null,null,null,null,null,null,""]
[null,null,null,null,null,"","","",null,"",null,null,"",null,null,null,null,null,null,null,null,""]
[null,null,null,null,null,"","","",null,"",null,null,"",null,null,null,null,null,null,null,null,""]
[null,null,null,null,null,"","","",null,"",null,null,"",null,null,null,null,null,null,null,null,""]
[null,null,null,null,null,"","","",null,"",null,null,"",null,null,null,null,null,null,null,null,""]
[null,null,null,null,null,"","","",null,"",null,null,"",null,null,null,null,null,null,null,null,""]
[null,null,null,null,null,"","","",null,"",null,null,"",null,null,null,null,null,null,null,null,""]
[null,null,null,null,null,"","","",null,"",null,null,"",null,null,null,null,null,null,null,null,""]
[null,null,null,null,null,"","","",null,"",null,null,"",null,null,null,null,null,null,null,null,""]
[null,null,null,null,null,"","","",null,"",null,null,"",null,null,null,null,null,null,null,null,""]
[null,null,null,null,null,"","","",null,"",null,null,"",null,null,null,null,null,null,null,null,""]
[null,null,null,null,null,"","","",null,"",null,null,"",null,null,null,null,null,null,null,null,""]
[null,null,null,null,null,"","","",null,"",null,null,"",null,null,null,null,null,null,null,null,""]
[null,null,null,null,null,"","","",null,"",null,null,"",null,null,null,null,null,null,null,null,""]
[null,null,null,null,null,"","","",null,"",null,null,"",null,null,null,null,null,null,null,null,""]
[null,null,null,null,null,"","","",null,"",null,null,"",null,null,null,null,null,null,null,null,""]
[null,null,null,null,null,"","","",null,"",null,null,"",null,null,null,null,null,null,null,null,""]
[null,null,null,null,null,"","","",null,"",null,null,"",null,null,null,null,null,null,null,null,""]
[null,null,null,null,null,"","",{"$f":"IF(AND(LEN(A1229)>0,LEN(B1229)>0),(C1229+D1229+E1229)*F1229+G1229,\"\")","v":""},null,"",null,null,"",null,null,null,null,null,null,null,null,""]
[null,null,null,null,null,"",{"$f":"IF(AND(LEN(A1230)>0,LEN(B1230)>0),0,\"\")","v":""},"",null,{"$f":"IF(AND(LEN(A1230)>0,LEN(B1230)>0),I1230,\"\")","v":""},null,null,{"$f":"IF(AND(LEN(A1230)>0,LEN(B1230)>0),SUM(J1230:L1230),\"\")","v":""},null,null,null,null,null,null,null,null,{"$f":"IF(AND(LEN(A1230)>0,LEN(B1230)>0),H1230-M1230+N1230+O1230+P1230+Q1230+R1230+S1230-T1230-U1230,\"\")","v":""}]
[null,null,null,null,null,{"$f":"IF(AND(LEN(A1231)>0,LEN(B1231)>0),0.95^10,\"\")","v":""},"","",null,"",null,null,"",null,null,null,null,null,null,null,null,""]
[null,null,null,null,null,"","","",null,"",null,null,"",null,null,null,null,null,null,null,null,""]
[null,null,null,null,null,"","","",null,"",null,null,"",null,null,null,null,null,null,null,null,""]
[null,null,null,null,null,"","","",null,"",null,null,"",null,null,null,null,null,null,null,null,""]
[null,null,null,null,null,"","","",null,"",null,null,"",null,null,null,null,null,null,null,null,""]
[null,null,null,null,null,"","","",null,"",null,null,"",null,null,null,null,null,null,null,null,""]
[null,null,null,null,null,"","","",null,"",null,null,"",null,null,null,null,null,null,null,null,""]
[null,null,null,null,null,"","","",null,"",null,null,"",null,null,null,null,null,null,null,null,""]
[null,null,null,null,null,"","","",null,"",null,null,"",null,null,null,null,null,null,null,null,""]
[null,null,null,null,null,"","","",null,"",null,null,"",null,null,null,null,null,null,null,null,""]
[null,null,null,null,null,"","","",null,"",null,null,"",null,null,null,null,null,null,null,null,""]
[null,null,null,null,null,"","","",null,"",null,null,"",null,null,null,null,null,null,null,null,""]
[null,null,null,null,null,"","","",null,"",null,null,"",null,null,null,null,null,null,null,null,""]
[null,null,null,null,null,"","","",null,"",null,null,"",null,null,null,null,null,null,null,null,""]
[null,null,null,null,null,"","","",null,"",null,null,"",null,null,null,null,null,null,null,null,""]
[null,null,null,null,null,"","","",null,"",null,null,"",null,null,null,null,null,null,null,null,""]
[null,null,null,null,null,"","","",null,"",null,null,"",null,null,null,null,null,null,null,null,""]
[null,null,null,null,null,"","","",null,"",null,null,"",null,null,null,null,null,null,null,null,""]
[null,null,null,null,null,"","","",null,"",null,null,"",null,null,null,null,null,null,null,null,""]
[null,null,null,null,null,"","","",null,"",null,null,"",null,null,null,null,null,null,null,null,""]
[null,null,null,null,null,"","","",null,"",null,null,"",null,null,null,null,null,null,null,null,""]
[null,null,null,null,null,"","","",null,"",null,null,"",null,null,null,null,null,null,null,null,""]
[null,null,null,null,null,"","","",null,"",null,null,"",null,null,null,null,null,null,null,null,""]
[null,null,null,null,null,"","","",null,"",null,null,"",null,null,null,null,null,null,null,null,""]
[null,null,null,null,null,"","","",null,"",null,null,"",null,null,null,null,null,null,null,null,""]
[null,null,null,null,null,"","","",null,"",null,null,"",null,null,null,null,null,null,null,null,""]
[null,null,null,null,null,"","","",null,"",null,null,"",null,null,null,null,null,null,null,null,""]
[null,null,null,null,null,"","","",null,"",null,null,"",null,null,null,null,null,null,null,null,""]
[null,null,null,null,null,"","","",null,"",null,null,"",null,null,null,null,null,null,null,null,""]
[null,null,null,null,null,"","","",null,"",null,null,"",null,null,null,null,null,null,null,null,""]
[null,null,null,null,null,"","","",null,"",null,null,"",null,null,null,null,null,null,null,null,""]
[null,null,null,null,null,"","","",null,"",null,null,"",null,null,null,null,null,null,null,null,""]
[null,null,null,null,null,"","","",null,"",null,null,"",null,null,null,null,null,null,null,null,""]
[null,null,null,null,null,"","","",null,"",null,null,"",null,null,null,null,null,null,null,null,""]
[null,null,null,null,null,"","","",null,"",null,null,"",null,null,null,null,null,null,null,null,""]
[null,null,null,null,null,"","","",null,"",null,null,"",null,null,null,null,null,null,null,null,""]
[null,null,null,null,null,"","","",null,"",null,null,"",null,null,null,null,null,null,null,null,""]
[null,null,null,null,null,"","","",null,"",null,null,"",null,null,null,null,null,null,null,null,""]
[null,null,null,null,null,"","","",null,"",null,null,"",null,null,null,null,null,null,null,null,""]
[null,null,null,null,null,"","","",null,"",null,null,"",null,null,null,null,null,null,null,null,""]
[null,null,null,null,null,"","","",null,"",null,null,"",null,null,null,null,null,null,null,null,""]
[null,null,null,null,null,"","","",null,"",null,null,"",null,null,null,null,null,null,null,null,""]
[null,null,null,null,null,"","","",null,"",null,null,"",null,null,null,null,null,null,null,null,""]
[null,null,null,null,null,"","","",null,"",null,null,"",null,null,null,null,null,null,null,null,""]
[null,null,null,null,null,"","","",null,"",null,null,"",null,null,null,null,null,null,null,null,""]
[null,null,null,null,null,"","","",null,"",null,null,"",null,null,null,null,null,null,null,null,""]
[null,null,null,null,null,"","","",null,"",null,null,"",null,null,null,null,null,null,null,null,""]
[null,null,null,null,null,"","","",null,"",null,null,"",null,null,null,null,null,null,null,null,""]
[null,null,null,null,null,"","","",null,"",null,null,"",null,null,null,null,null,null,null,null,""]
[null,null,null,null,null,"","","",null,"",null,null,"",null,null,null,null,null,null,null,null,""]
[null,null,null,null,null,"","","",null,"",null,null,"",null,null,null,null,null,null,null,null,""]
[null,null,null,null,null,"","","",null,"",null,null,"",null,null,null,null,null,null,null,null,""]
[null,null,null,null,null,"","","",null,"",null,null,"",null,null,null,null,null,null,null,null,""]
[null,null,null,null,null,"","","",null,"",null,null,"",null,null,null,null,null,null,null,null,""]
[null,null,null,null,null,"","","",null,"",null,null,"",null,null,null,null,null,null,null,null,""]
[null,null,null,null,null,"","","",null,"",null,null,"",null,null,null,null,null,null,null,null,""]
[null,null,null,null,null,"","","",null,"",null,null,"",null,null,null,null,null,null,null,null,""]
[null,null,null,null,null,"","","",null,"",null,null,"",null,null,null,null,null,null,null,null,""]
[null,null,null,null,null,"","","",null,"",null,null,"",null,null,null,null,null,null,null,null,""]
[null,null,null,null,null,"","","",null,"",null,null,"",null,null,null,null,null,null,null,null,""]
[null,null,null,null,null,"","","",null,"",null,null,"",null,null,null,null,null,null,null,null,""]
[null,null,null,null,null,"","","",null,"",null,null,"",null,null,null,null,null,null,null,null,""]
[null,null,null,null,null,"","",{"$f":"IF(AND(LEN(A1293)>0,LEN(B1293)>0),(C1293+D1293+E1293)*F1293+G1293,\"\")","v":""},null,"",null,null,"",null,null,null,null,null,null,null,null,""]
[null,null,null,null,null,"",{"$f":"IF(AND(LEN(A1294)>0,LEN(B1294)>0),0,\"\")","v":""},"",null,{"$f":"IF(AND(LEN(A1294)>0,LEN(B1294)>0),I1294,\"\")","v":""},null,null,{"$f":"IF(AND(LEN(A1294)>0,LEN(B1294)>0),SUM(J1294:L1294),\"\")","v":""},null,null,null,null,null,null,null,null,{"$f":"IF(AND(LEN(A1294)>0,LEN(B1294)>0),H1294-M1294+N1294+O1294+P1294+Q1294+R1294+S1294-T1294-U1294,\"\")","v":""}]
[null,null,null,null,null,{"$f":"IF(AND(LEN(A1295)>0,LEN(B1295)>0),0.95^10,\"\")","v":""},"","",null,"",null,null,"",null,null,null,null,null,null,null,null,""]
[null,null,null,null,null,"","","",null,"",null,null,"",null,null,null,null,null,null,null,null,""]
[null,null,null,null,null,"","","",null,"",null,null,"",null,null,null,null,null,null,null,null,""]
[null,null,null,null,null,"","","",null,"",null,null,"",null,null,null,null,null,null,null,null,""]
[null,null,null,null,null,"","","",null,"",null,null,"",null,null,null,null,null,null,null,null,""]
[null,null,null,null,null,"","","",null,"",null,null,"",null,null,null,null,null,null,null,null,""]
[null,null,null,null,null,"","","",null,"",null,null,"",null,null,null,null,null,null,null,null,""]
[null,null,null,null,null,"","","",null,"",null,null,"",null,null,null,null,null,null,null,null,""]
[null,null,null,null,null,"","","",null,"",null,null,"",null,null,null,null,null,null,null,null,""]
[null,null,null,null,null,"","","",null,"",null,null,"",null,null,null,null,null,null,null,null,""]
[null,null,null,null,null,"","","",null,"",null,null,"",null,null,null,null,null,null,null,null,""]
[null,null,null,null,null,"","","",null,"",null,null,"",null,null,null,null,null,null,null,null,""]
[null,null,null,null,null,"","","",null,"",null,null,"",null,null,null,null,null,null,null,null,""]
[null,null,null,null,null,"","","",null,"",null,null,"",null,null,null,null,null,null,null,null,""]
[null,null,null,null,null,"","","",null,"",null,null,"",null,null,null,null,null,null,null,null,""]
[null,null,null,null,null,"","","",null,"",null,null,"",null,null,null,null,null,null,null,null,""]
[null,null,null,null,null,"","","",null,"",null,null,"",null,null,null,null,null,null,null,null,""]
[null,null,null,null,null,"","","",null,"",null,null,"",null,null,null,null,null,null,null,null,""]
[null,null,null,null,null,"","","",null,"",null,null,"",null,null,null,null,null,null,null,null,""]
[null,null,null,null,null,"","","",null,"",null,null,"",null,null,null,null,null,null,null,null,""]
[null,null,null,null,null,"","","",null,"",null,null,"",null,null,null,null,null,null,null,null,""]
[null,null,null,null,null,"","","",null,"",null,null,"",null,null,null,null,null,null,null,null,""]
[null,null,null,null,null,"","","",null,"",null,null,"",null,null,null,null,null,null,null,null,""]
[null,null,null,null,null,"","","",null,"",null,null,"",null,null,null,null,null,null,null,null,""]
[null,null,null,null,null,"","","",null,"",null,null,"",null,null,null,null,null,null,null,null,""]
[null,null,null,null,null,"","","",null,"",null,null,"",null,null,null,null,null,null,null,null,""]
[null,null,null,null,null,"","","",null,"",null,null,"",null,null,null,null,null,null,null,null,""]
[null,null,null,null,null,"","","",null,"",null,null,"",null,null,null,null,null,null,null,null,""]
[null,null,null,null,null,"","","",null,"",null,null,"",null,null,null,null,null,null,null,null,""]
[null,null,null,null,null,"","","",null,"",null,null,"",null,null,null,null,null,null,null,null,""]
[null,null,null,null,null,"","","",null,"",null,null,"",null,null,null,null,null,null,null,null,""]
[null,null,null,null,null,"","","",null,"",null,null,"",null,null,null,null,null,null,null,null,""]
[null,null,null,null,null,"","","",null,"",null,null,"",null,null,null,null,null,null,null,null,""]
[null,null,null,null,null,"","","",null,"",null,null,"",null,null,null,null,null,null,null,null,""]
[null,null,null,null,null,"","","",null,"",null,null,"",null,null,null,null,null,null,null,null,""]
[null,null,null,null,null,"","","",null,"",null,null,"",null,null,null,null,null,null,null,null,""]
[null,null,null,null,null,"","","",null,"",null,null,"",null,null,null,null,null,null,null,null,""]
[null,null,null,null,null,"","","",null,"",null,null,"",null,null,null,null,null,null,null,null,""]
[null,null,null,null,null,"","","",null,"",null,null,"",null,null,null,null,null,null,null,null,""]
[null,null,null,null,null,"","","",null,"",null,null,"",null,null,null,null,null,null,null,null,""]
[null,null,null,null,null,"","","",null,"",null,null,"",null,null,null,null,null,null,null,null,""]
[null,null,null,null,null,"","","",null,"",null,null,"",null,null,null,null,null,null,null,null,""]
[null,null,null,null,null,"","","",null,"",null,null,"",null,null,null,null,null,null,null,null,""]
[null,null,null,null,null,"","","",null,"",null,null,"",null,null,null,null,null,null,null,null,""]
[null,null,null,null,null,"","","",null,"",null,null,"",null,null,null,null,null,null,null,null,""]
[null,null,null,null,null,"","","",null,"",null,null,"",null,null,null,null,null,null,null,null,""]
[null,null,null,null,null,"","","",null,"",null,null,"",null,null,null,null,null,null,null,null,""]
[null,null,null,null,null,"","","",null,"",null,null,"",null,null,null,null,null,null,null,null,""]
[null,null,null,null,null,"","","",null,"",null,null,"",null,null,null,null,null,null,null,null,""]
[null,null,null,null,null,"","","",null,"",null,null,"",null,null,null,null,null,null,null,null,""]
[null,null,null,null,null,"","","",null,"",null,null,"",null,null,null,null,null,null,null,null,""]
[null,null,null,null,null,"","","",null,"",null,null,"",null,null,null,null,null,null,null,null,""]
[null,null,null,null,null,"","","",null,"",null,null,"",null,null,null,null,null,null,null,null,""]
[null,null,null,null,null,"","","",null,"",null,null,"",null,null,null,null,null,null,null,null,""]
[null,null,null,null,null,"","","",null,"",null,null,"",null,null,null,null,null,null,null,null,""]
[null,null,null,null,null,"","","",null,"",null,null,"",null,null,null,null,null,null,null,null,""]
[null,null,null,null,null,"","","",null,"",null,null,"",null,null,null,null,null,null,null,null,""]
[null,null,null,null,null,"","","",null,"",null,null,"",null,null,null,null,null,null,null,null,""]
[null,null,null,null,null,"","","",null,"",null,null,"",null,null,null,null,null,null,null,null,""]
[null,null,null,null,null,"","","",null,"",null,null,"",null,null,null,null,null,null,null,null,""]
[null,null,null,null,null,"","","",null,"",null,null,"",null,null,null,null,null,null,null,null,""]
[null,null,null,null,null,"","","",null,"",null,null,"",null,null,null,null,null,null,null,null,""]
[null,null,null,null,null,"","",{"$f":"IF(AND(LEN(A1357)>0,LEN(B1357)>0),(C1357+D1357+E1357)*F1357+G1357,\"\")","v":""},null,"",null,null,"",null,null,null,null,null,null,null,null,""]
[null,null,null,null,null,"",{"$f":"IF(AND(LEN(A1358)>0,LEN(B1358)>0),0,\"\")","v":""},"",null,{"$f":"IF(AND(LEN(A1358)>0,LEN(B1358)>0),I1358,\"\")","v":""},null,null,{"$f":"IF(AND(LEN(A1358)>0,LEN(B1358)>0),SUM(J1358:L1358),\"\")","v":""},null,null,null,null,null,null,null,null,{"$f":"IF(AND(LEN(A1358)>0,LEN(B1358)>0),H1358-M1358+N1358+O1358+P1358+Q1358+R1358+S1358-T1358-U1358,\"\")","v":""}]
[null,null,null,null,null,{"$f":"IF(AND(LEN(A1359)>0,LEN(B1359)>0),0.95^10,\"\")","v":""},"","",null,"",null,null,"",null,null,null,null,null,null,null,null,""]
[null,null,null,null,null,"","","",null,"",null,null,"",null,null,null,null,null,null,null,null,""]
[null,null,null,null,null,"","","",null,"",null,null,"",null,null,null,null,null,null,null,null,""]
[null,null,null,null,null,"","","",null,"",null,null,"",null,null,null,null,null,null,null,null,""]
[null,null,null,null,null,"","","",null,"",null,null,"",null,null,null,null,null,null,null,null,""]
[null,null,null,null,null,"","","",null,"",null,null,"",null,null,null,null,null,null,null,null,""]
[null,null,null,null,null,"","","",null,"",null,null,"",null,null,null,null,null,null,null,null,""]
[null,null,null,null,null,"","","",null,"",null,null,"",null,null,null,null,null,null,null,null,""]
[null,null,null,null,null,"","","",null,"",null,null,"",null,null,null,null,null,null,null,null,""]
[null,null,null,null,null,"","","",null,"",null,null,"",null,null,null,null,null,null,null,null,""]
[null,null,null,null,null,"","","",null,"",null,null,"",null,null,null,null,null,null,null,null,""]
[null,null,null,null,null,"","","",null,"",null,null,"",null,null,null,null,null,null,null,null,""]
[null,null,null,null,null,"","","",null,"",null,null,"",null,null,null,null,null,null,null,null,""]
[null,null,null,null,null,"","","",null,"",null,null,"",null,null,null,null,null,null,null,null,""]
[null,null,null,null,null,"","","",null,"",null,null,"",null,null,null,null,null,null,null,null,""]
[null,null,null,null,null,"","","",null,"",null,null,"",null,null,null,null,null,null,null,null,""]
[null,null,null,null,null,"","","",null,"",null,null,"",null,null,null,null,null,null,null,null,""]
[null,null,null,null,null,"","","",null,"",null,null,"",null,null,null,null,null,null,null,null,""]
[null,null,null,null,null,"","","",null,"",null,null,"",null,null,null,null,null,null,null,null,""]
[null,null,null,null,null,"","","",null,"",null,null,"",null,null,null,null,null,null,null,null,""]
[null,null,null,null,null,"","","",null,"",null,null,"",null,null,null,null,null,null,null,null,""]
[null,null,null,null,null,"","","",null,"",null,null,"",null,null,null,null,null,null,null,null,""]
[null,null,null,null,null,"","","",null,"",null,null,"",null,null,null,null,null,null,null,null,""]
[null,null,null,null,null,"","","",null,"",null,null,"",null,null,null,null,null,null,null,null,""]
[null,null,null,null,null,"","","",null,"",null,null,"",null,null,null,null,null,null,null,null,""]
[null,null,null,null,null,"","","",null,"",null,null,"",null,null,null,null,null,null,null,null,""]
[null,null,null,null,null,"","","",null,"",null,null,"",null,null,null,null,null,null,null,null,""]
[null,null,null,null,null,"","","",null,"",null,null,"",null,null,null,null,null,null,null,null,""]
[null,null,null,null,null,"","","",null,"",null,null,"",null,null,null,null,null,null,null,null,""]
[null,null,null,null,null,"","","",null,"",null,null,"",null,null,null,null,null,null,null,null,""]
[null,null,null,null,null,"","","",null,"",null,null,"",null,null,null,null,null,null,null,null,""]
[null,null,null,null,null,"","","",null,"",null,null,"",null,null,null,null,null,null,null,null,""]
[null,null,null,null,null,"","","",null,"",null,null,"",null,null,null,null,null,null,null,null,""]
[null,null,null,null,null,"","","",null,"",null,null,"",null,null,null,null,null,null,null,null,""]
[null,null,null,null,null,"","","",null,"",null,null,"",null,null,null,null,null,null,null,null,""]
[null,null,null,null,null,"","","",null,"",null,null,"",null,null,null,null,null,null,null,null,""]
[null,null,null,null,null,"","","",null,"",null,null,"",null,null,null,null,null,null,null,null,""]
[null,null,null,null,null,"","","",null,"",null,null,"",null,null,null,null,null,null,null,null,""]
[null,null,null,null,null,"","","",null,"",null,null,"",null,null,null,null,null,null,null,null,""]
[null,null,null,null,null,"","","",null,"",null,null,"",null,null,null,null,null,null,null,null,""]
[null,null,null,null,null,"","","",null,"",null,null,"",null,null,null,null,null,null,null,null,""]
[null,null,null,null,null,"","","",null,"",null,null,"",null,null,null,null,null,null,null,null,""]
[null,null,null,null,null,"","","",null,"",null,null,"",null,null,null,null,null,null,null,null,""]
[null,null,null,null,null,"","","",null,"",null,null,"",null,null,null,null,null,null,null,null,""]
[null,null,null,null,null,"","","",null,"",null,null,"",null,null,null,null,null,null,null,null,""]
[null,null,null,null,null,"","","",null,"",null,null,"",null,null,null,null,null,null,null,null,""]
[null,null,null,null,null,"","","",null,"",null,null,"",null,null,null,null,null,null,null,null,""]
[null,null,null,null,null,"","","",null,"",null,null,"",null,null,null,null,null,null,null,null,""]
[null,null,null,null,null,"","","",null,"",null,null,"",null,null,null,null,null,null,null,null,""]
[null,null,null,null,null,"","","",null,"",null,null,"",null,null,null,null,null,null,null,null,""]
[null,null,null,null,null,"","","",null,"",null,null,"",null,null,null,null,null,null,null,null,""]
[null,null,null,null,null,"","","",null,"",null,null,"",null,null,null,null,null,null,null,null,""]
[null,null,null,null,null,"","","",null,"",null,null,"",null,null,null,null,null,null,null,null,""]
[null,null,null,null,null,"","","",null,"",null,null,"",null,null,null,null,null,null,null,null,""]
[null,null,null,null,null,"","","",null,"",null,null,"",null,null,null,null,null,null,null,null,""]
[null,null,null,null,null,"","","",null,"",null,null,"",null,null,null,null,null,null,null,null,""]
[null,null,null,null,null,"","","",null,"",null,null,"",null,null,null,null,null,null,null,null,""]
[null,null,null,null,null,"","","",null,"",null,null,"",null,null,null,null,null,null,null,null,""]
[null,null,null,null,null,"","","",null,"",null,null,"",null,null,null,null,null,null,null,null,""]
[null,null,null,null,null,"","","",null,"",null,null,"",null,null,null,null,null,null,null,null,""]
[null,null,null,null,null,"","","",null,"",null,null,"",null,null,null,null,null,null,null,null,""]
[null,null,null,null,null,"","","",null,"",null,null,"",null,null,null,null,null,null,null,null,""]
[null,null,null,null,null,"","",{"$f":"IF(AND(LEN(A1421)>0,LEN(B1421)>0),(C1421+D1421+E1421)*F1421+G1421,\"\")","v":""},null,"",null,null,"",null,null,null,null,null,null,null,null,""]
[null,null,null,null,null,"",{"$f":"IF(AND(LEN(A1422)>0,LEN(B1422)>0),0,\"\")","v":""},"",null,{"$f":"IF(AND(LEN(A1422)>0,LEN(B1422)>0),I1422,\"\")","v":""},null,null,{"$f":"IF(AND(LEN(A1422)>0,LEN(B1422)>0),SUM(J1422:L1422),\"\")","v":""},null,null,null,null,null,null,null,null,{"$f":"IF(AND(LEN(A1422)>0,LEN(B1422)>0),H1422-M1422+N1422+O1422+P1422+Q1422+R1422+S1422-T1422-U1422,\"\")","v":""}]
[null,null,null,null,null,{"$f":"IF(AND(LEN(A1423)>0,LEN(B1423)>0),0.95^10,\"\")","v":""},"","",null,"",null,null,"",null,null,null,null,null,null,null,null,""]
[null,null,null,null,null,"","","",null,"",null,null,"",null,null,null,null,null,null,null,null,""]
[null,null,null,null,null,"","","",null,"",null,null,"",null,null,null,null,null,null,null,null,""]
[null,null,null,null,null,"","","",null,"",null,null,"",null,null,null,null,null,null,null,null,""]
[null,null,null,null,null,"","","",null,"",null,null,"",null,null,null,null,null,null,null,null,""]
[null,null,null,null,null,"","","",null,"",null,null,"",null,null,null,null,null,null,null,null,""]
[null,null,null,null,null,"","","",null,"",null,null,"",null,null,null,null,null,null,null,null,""]
[null,null,null,null,null,"","","",null,"",null,null,"",null,null,null,null,null,null,null,null,""]
[null,null,null,null,null,"","","",null,"",null,null,"",null,null,null,null,null,null,null,null,""]
[null,null,null,null,null,"","","",null,"",null,null,"",null,null,null,null,null,null,null,null,""]
[null,null,null,null,null,"","","",null,"",null,null,"",null,null,null,null,null,null,null,null,""]
[null,null,null,null,null,"","","",null,"",null,null,"",null,null,null,null,null,null,null,null,""]
[null,null,null,null,null,"","","",null,"",null,null,"",null,null,null,null,null,null,null,null,""]
[null,null,null,null,null,"","","",null,"",null,null,"",null,null,null,null,null,null,null,null,""]
[null,null,null,null,null,"","","",null,"",null,null,"",null,null,null,null,null,null,null,null,""]
[null,null,null,null,null,"","","",null,"",null,null,"",null,null,null,null,null,null,null,null,""]
[null,null,null,null,null,"","","",null,"",null,null,"",null,null,null,null,null,null,null,null,""]
[null,null,null,null,null,"","","",null,"",null,null,"",null,null,null,null,null,null,null,null,""]
[null,null,null,null,null,"","","",null,"",null,null,"",null,null,null,null,null,null,null,null,""]
[null,null,null,null,null,"","","",null,"",null,null,"",null,null,null,null,null,null,null,null,""]
[null,null,null,null,null,"","","",null,"",null,null,"",null,null,null,null,null,null,null,null,""]
[null,null,null,null,null,"","","",null,"",null,null,"",null,null,null,null,null,null,null,null,""]
[null,null,null,null,null,"","","",null,"",null,null,"",null,null,null,null,null,null,null,null,""]
[null,null,null,null,null,"","","",null,"",null,null,"",null,null,null,null,null,null,null,null,""]
[null,null,null,null,null,"","","",null,"",null,null,"",null,null,null,null,null,null,null,null,""]
[null,null,null,null,null,"","","",null,"",null,null,"",null,null,null,null,null,null,null,null,""]
[null,null,null,null,null,"","","",null,"",null,null,"",null,null,null,null,null,null,null,null,""]
[null,null,null,null,null,"","","",null,"",null,null,"",null,null,null,null,null,null,null,null,""]
[null,null,null,null,null,"","","",null,"",null,null,"",null,null,null,null,null,null,null,null,""]
[null,null,null,null,null,"","","",null,"",null,null,"",null,null,null,null,null,null,null,null,""]
[null,null,null,null,null,"","","",null,"",null,null,"",null,null,null,null,null,null,null,null,""]
[null,null,null,null,null,"","","",null,"",null,null,"",null,null,null,null,null,null,null,null,""]
[null,null,null,null,null,"","","",null,"",null,null,"",null,null,null,null,null,null,null,null,""]
[null,null,null,null,null,"","","",null,"",null,null,"",null,null,null,null,null,null,null,null,""]
[null,null,null,null,null,"","","",null,"",null,null,"",null,null,null,null,null,null,null,null,""]
[null,null,null,null,null,"","","",null,"",null,null,"",null,null,null,null,null,null,null,null,""]
[null,null,null,null,null,"","","",null,"",null,null,"",null,null,null,null,null,null,null,null,""]
[null,null,null,null,null,"","","",null,"",null,null,"",null,null,null,null,null,null,null,null,""]
[null,null,null,null,null,"","","",null,"",null,null,"",null,null,null,null,null,null,null,null,""]
[null,null,null,null,null,"","","",null,"",null,null,"",null,null,null,null,null,null,null,null,""]
[null,null,null,null,null,"","","",null,"",null,null,"",null,null,null,null,null,null,null,null,""]
[null,null,null,null,null,"","","",null,"",null,null,"",null,null,null,null,null,null,null,null,""]
[null,null,null,null,null,"","","",null,"",null,null,"",null,null,null,null,null,null,null,null,""]
[null,null,null,null,null,"","","",null,"",null,null,"",null,null,null,null,null,null,null,null,""]
[null,null,null,null,null,"","","",null,"",null,null,"",null,null,null,null,null,null,null,null,""]
[null,null,null,null,null,"","","",null,"",null,null,"",null,null,null,null,null,null,null,null,""]
[null,null,null,null,null,"","","",null,"",null,null,"",null,null,null,null,null,null,null,null,""]
[null,null,null,null,null,"","","",null,"",null,null,"",null,null,null,null,null,null,null,null,""]
[null,null,null,null,null,"","","",null,"",null,null,"",null,null,null,null,null,null,null,null,""]
[null,null,null,null,null,"","","",null,"",null,null,"",null,null,null,null,null,null,null,null,""]
[null,null,null,null,null,"","","",null,"",null,null,"",null,null,null,null,null,null,null,null,""]
[null,null,null,null,null,"","","",null,"",null,null,"",null,null,null,null,null,null,null,null,""]
[null,null,null,null,null,"","","",null,"",null,null,"",null,null,null,null,null,null,null,null,""]
[null,null,null,null,null,"","","",null,"",null,null,"",null,null,null,null,null,null,null,null,""]
[null,null,null,null,null,"","","",null,"",null,null,"",null,null,null,null,null,null,null,null,""]
[null,null,null,null,null,"","","",null,"",null,null,"",null,null,null,null,null,null,null,null,""]
[null,null,null,null,null,"","","",null,"",null,null,"",null,null,null,null,null,null,null,null,""]
[null,null,null,null,null,"","","",null,"",null,null,"",null,null,null,null,null,null,null,null,""]
[null,null,null,null,null,"","","",null,"",null,null,"",null,null,null,null,null,null,null,null,""]
[null,null,null,null,null,"","","",null,"",null,null,"",null,null,null,null,null,null,null,null,""]
[null,null,null,null,null,"","","",null,"",null,null,"",null,null,null,null,null,null,null,null,""]
[null,null,null,null,null,"","","",null,"",null,null,"",null,null,null,null,null,null,null,null,""]
[null,null,null,null,null,"","",{"$f":"IF(AND(LEN(A1485)>0,LEN(B1485)>0),(C1485+D1485+E1485)*F1485+G1485,\"\")","v":""},null,"",null,null,"",null,null,null,null,null,null,null,null,""]
[null,null,null,null,null,"",{"$f":"IF(AND(LEN(A1486)>0,LEN(B1486)>0),0,\"\")","v":""},"",null,{"$f":"IF(AND(LEN(A1486)>0,LEN(B1486)>0),I1486,\"\")","v":""},null,null,{"$f":"IF(AND(LEN(A1486)>0,LEN(B1486)>0),SUM(J1486:L1486),\"\")","v":""},null,null,null,null,null,null,null,null,{"$f":"IF(AND(LEN(A1486)>0,LEN(B1486)>0),H1486-M1486+N1486+O1486+P1486+Q1486+R1486+S1486-T1486-U1486,\"\")","v":""}]
[null,null,null,null,null,{"$f":"IF(AND(LEN(A1487)>0,LEN(B1487)>0),0.95^10,\"\")","v":""},"","",null,"",null,null,"",null,null,null,null,null,null,null,null,""]
[null,null,null,null,null,"","","",null,"",null,null,"",null,null,null,null,null,null,null,null,""]
[null,null,null,null,null,"","","",null,"",null,null,"",null,null,null,null,null,null,null,null,""]
[null,null,null,null,null,"","","",null,"",null,null,"",null,null,null,null,null,null,null,null,""]
[null,null,null,null,null,"","","",null,"",null,null,"",null,null,null,null,null,null,null,null,""]
[null,null,null,null,null,"","","",null,"",null,null,"",null,null,null,null,null,null,null,null,""]
[null,null,null,null,null,"","","",null,"",null,null,"",null,null,null,null,null,null,null,null,""]
[null,null,null,null,null,"","","",null,"",null,null,"",null,null,null,null,null,null,null,null,""]
[null,null,null,null,null,"","","",null,"",null,null,"",null,null,null,null,null,null,null,null,""]
[null,null,null,null,null,"","","",null,"",null,null,"",null,null,null,null,null,null,null,null,""]
[null,null,null,null,null,"","","",null,"",null,null,"",null,null,null,null,null,null,null,null,""]
[null,null,null,null,null,"","","",null,"",null,null,"",null,null,null,null,null,null,null,null,""]
[null,null,null,null,null,"","","",null,"",null,null,"",null,null,null,null,null,null,null,null,""]
[null,null,null,null,null,"","","",null,"",null,null,"",null,null,null,null,null,null,null,null,""]
[null,null,null,null,null,"","","",null,"",null,null,"",null,null,null,null,null,null,null,null,""]
[null,null,null,null,null,"","","",null,"",null,null,"",null,null,null,null,null,null,null,null,""]
[null,null,null,null,null,"","","",null,"",null,null,"",null,null,null,null,null,null,null,null,""]
[null,null,null,null,null,"","","",null,"",null,null,"",null,null,null,null,null,null,null,null,""]
[null,null,null,null,null,"","","",null,"",null,null,"",null,null,null,null,null,null,null,null,""]
[null,null,null,null,null,"","","",null,"",null,null,"",null,null,null,null,null,null,null,null,""]
[null,null,null,null,null,"","","",null,"",null,null,"",null,null,null,null,null,null,null,null,""]
[null,null,null,null,null,"","","",null,"",null,null,"",null,null,null,null,null,null,null,null,""]
[null,null,null,null,null,"","","",null,"",null,null,"",null,null,null,null,null,null,null,null,""]
[null,null,null,null,null,"","","",null,"",null,null,"",null,null,null,null,null,null,null,null,""]
[null,null,null,null,null,"","","",null,"",null,null,"",null,null,null,null,null,null,null,null,""]
[null,null,null,null,null,"","","",null,"",null,null,"",null,null,null,null,null,null,null,null,""]